Workbook

Sheet mapping (hidden)
B1: Mapping Sheet | G1: Source: Xrates on 6/21/2012 | H1: and xe.com
B2: Currency Mapping | L2: Country Mapping
B3: Currency | C3: in USD | G3: Value of 1 American Dollar | L3: Actual | M3: Mapping
B4: USD | C4: 1 | G4: Argentine Peso | H4: 4.49273 | I4: ARS | L4: USA | M4: USA
B5: EUR | C5: =1/INDEX($H$4:$H$64,MATCH(tblXrate[[#This Row],[Currency]],$I$4:$I$64,0)) -> 1.270399439 | G5: Australian Dollar | H5: 0.980479 | I5: AUD | L5: India | M5: India
B6: PKR | C6: =1/INDEX($H$4:$H$64,MATCH(tblXrate[[#This Row],[Currency]],$I$4:$I$64,0)) -> 0.01061408872 | G6: Botswana Pula | H6: 7.65697 | I6: BWP | L6: UK | M6: UK
B7: INR | C7: =1/INDEX($H$4:$H$64,MATCH(tblXrate[[#This Row],[Currency]],$I$4:$I$64,0)) -> 0.01780791669 | G7: Brazilian Real | H7: 2.02314 | I7: BRL | L7: Australia | M7: Australia
B8: GBP | C8: =1/INDEX($H$4:$H$64,MATCH(tblXrate[[#This Row],[Currency]],$I$4:$I$64,0)) -> 1.576178272 | G8: British Pound | H8: 0.634446 | I8: GBP | L8: Canada | M8: Canada
B9: AUD | C9: =1/INDEX($H$4:$H$64,MATCH(tblXrate[[#This Row],[Currency]],$I$4:$I$64,0)) -> 1.019909656 | G9: Brunei dollar | H9: 1.2687 | I9: BND | L9: Pakistan | M9: Pakistan
B10: CAD | C10: =1/INDEX($H$4:$H$64,MATCH(tblXrate[[#This Row],[Currency]],$I$4:$I$64,0)) -> 0.983361523 | G10: Bulgarian Lev | H10: 1.53952 | I10: BGN | L10: South Africa | M10: South Africa
B11: PHP | C11: =1/INDEX($H$4:$H$64,MATCH(tblXrate[[#This Row],[Currency]],$I$4:$I$64,0)) -> 0.02370505226 | G11: Canadian Dollar | H11: 1.01692 | I11: CAD | L11: Germany | M11: Germany
B12: AED | C12: =1/INDEX($H$4:$H$64,MATCH(tblXrate[[#This Row],[Currency]],$I$4:$I$64,0)) -> 0.2722192127 | G12: Chilean Peso | H12: 497.268 | I12: CLP | L12: UAE | M12: UAE
B13: MXN | C13: =1/INDEX($H$4:$H$64,MATCH(tblXrate[[#This Row],[Currency]],$I$4:$I$64,0)) -> 0.07304655257 | G13: Chinese Yuan | H13: 6.36091 | I13: CNY | L13: Brazil | M13: Brazil
B14: SEK | C14: =1/INDEX($H$4:$H$64,MATCH(tblXrate[[#This Row],[Currency]],$I$4:$I$64,0)) -> 0.1436552504 | G14: Colombian Peso | H14: 1769.79 | I14: COP | L14: Netherlands | M14: Netherlands
B15: BDT | C15: =1/INDEX($H$4:$H$64,MATCH(tblXrate[[#This Row],[Currency]],$I$4:$I$64,0)) -> 0.01222084534 | G15: Croatian Kuna | H15: 5.93671 | I15: HRK | L15: Singapore | M15: Singapore
B16: COSTARICAN | C16: =1/INDEX($H$4:$H$64,MATCH(tblXrate[[#This Row],[Currency]],$I$4:$I$64,0)) -> 0.002007830539 | G16: Danish Krone | H16: 5.85123 | I16: DKK | L16: Philippines | M16: Philippines
B17: ZAR | C17: =1/INDEX($H$4:$H$64,MATCH(tblXrate[[#This Row],[Currency]],$I$4:$I$64,0)) -> 0.1219217799 | G17: Euro | H17: 0.787154 | I17: EUR | L17: Portugal | M17: Portugal
B18: NZD | C18: =1/INDEX($H$4:$H$64,MATCH(tblXrate[[#This Row],[Currency]],$I$4:$I$64,0)) -> 0.7975880936 | G18: Hong Kong Dollar | H18: 7.75889 | I18: HKD | L18: Spain | M18: Spain
B19: CNY | C19: =1/INDEX($H$4:$H$64,MATCH(tblXrate[[#This Row],[Currency]],$I$4:$I$64,0)) -> 0.1572102105 | G19: Hungarian Forint | H19: 225.874 | I19: HUF | L19: New Zealand | M19: New Zealand
B20: EGYPT | C20: =1/INDEX($H$4:$H$64,MATCH(tblXrate[[#This Row],[Currency]],$I$4:$I$64,0)) -> 0.1652619402 | G20: Iceland Krona | H20: 124.697 | I20: ISK | L20: Russia | M20: Russia
B21: NAIRA | C21: =1/INDEX($H$4:$H$64,MATCH(tblXrate[[#This Row],[Currency]],$I$4:$I$64,0)) -> 0.006163328197 | G21: Indian Rupee | H21: 56.1548 | I21: INR | L21: Saudi Arabia | M21: Saudi Arabia
B22: AED | C22: =1/INDEX($H$4:$H$64,MATCH(tblXrate[[#This Row],[Currency]],$I$4:$I$64,0)) -> 0.2722192127 | G22: Indonesian Rupiah | H22: 9443.81 | I22: IDR | L22: Mexico | M22: Mexico
B23: BRL | C23: =1/INDEX($H$4:$H$64,MATCH(tblXrate[[#This Row],[Currency]],$I$4:$I$64,0)) -> 0.4942811669 | G23: Israeli New Shekel | H23: 3.86721 | I23: ILS | L23: Indonesia | M23: Indonesia
B24: RON | C24: =1/INDEX($H$4:$H$64,MATCH(tblXrate[[#This Row],[Currency]],$I$4:$I$64,0)) -> 0.2846132391 | G24: Japanese Yen | H24: 78.9043 | I24: JPY | L24: Norway | M24: Norway
B25: USD | C25: 1 | G25: Kazakhstani Tenge | H25: 148.88 | I25: KZT | L25: malaysia | M25: malaysia
B26: MYR | C26: =1/INDEX($H$4:$H$64,MATCH(tblXrate[[#This Row],[Currency]],$I$4:$I$64,0)) -> 0.3168005677 | G26: Kuwaiti Dinar | H26: 0.2794 | I26: KWD | L26: The Netherlands | M26: Netherlands
B27: LKR | C27: =1/INDEX($H$4:$H$64,MATCH(tblXrate[[#This Row],[Currency]],$I$4:$I$64,0)) -> 0.007524058176 | G27: Latvian Lat | H27: 0.548489 | I27: LVL | L27: Romania | M27: Romania
B28: SGD | C28: =1/INDEX($H$4:$H$64,MATCH(tblXrate[[#This Row],[Currency]],$I$4:$I$64,0)) -> 0.7888239424 | G28: Libyan Dinar | H28: 1.9324 | I28: LYD | L28: Poland | M28: Poland
B29: GBP | C29: =1/INDEX($H$4:$H$64,MATCH(tblXrate[[#This Row],[Currency]],$I$4:$I$64,0)) -> 1.576178272 | G29: Lithuanian Litas | H29: 2.71788 | I29: LTL | L29: italy | M29: italy
B30: DOP | C30: =1/INDEX($H$4:$H$64,MATCH(tblXrate[[#This Row],[Currency]],$I$4:$I$64,0)) -> 0.02567394095 | G30: Malaysian Ringgit | H30: 3.15656 | I30: MYR | L30: Hungary | M30: Hungary
B31: PLN | C31: =1/INDEX($H$4:$H$64,MATCH(tblXrate[[#This Row],[Currency]],$I$4:$I$64,0)) -> 0.3003147298 | G31: Mauritius Rupee | H31: 30.7159 | I31: MUR | L31: Denmark | M31: Denmark
B32: KENYA | C32: =1/INDEX($H$4:$H$64,MATCH(tblXrate[[#This Row],[Currency]],$I$4:$I$64,0)) -> 0.0119760479 | G32: Mexican Peso | H32: 13.6899 | I32: MXN | L32: Ireland | M32: Ireland
B33: DKK | C33: =1/INDEX($H$4:$H$64,MATCH(tblXrate[[#This Row],[Currency]],$I$4:$I$64,0)) -> 0.1709042372 | G33: Nepalese Rupee | H33: 89.65 | I33: NPR | L33: Israel | M33: Israel
B34: IDR | C34: =1/INDEX($H$4:$H$64,MATCH(tblXrate[[#This Row],[Currency]],$I$4:$I$64,0)) -> 0.0001058894662 | G34: New Zealand Dollar | H34: 1.25378 | I34: NZD | L34: France | M34: France
B35: MONGOLIAN | C35: =1/INDEX($H$4:$H$64,MATCH(tblXrate[[#This Row],[Currency]],$I$4:$I$64,0)) -> 0.000756429652 | G35: Norwegian Kroner | H35: 5.90838 | I35: NOK | L35: Colombia | M35: Colombia
B36: JPY | C36: =1/INDEX($H$4:$H$64,MATCH(tblXrate[[#This Row],[Currency]],$I$4:$I$64,0)) -> 0.01267358053 | G36: Omani Rial | H36: 0.3845 | I36: OMR | L36: Switzerland | M36: Switzerland
B37: SAR | C37: =1/INDEX($H$4:$H$64,MATCH(tblXrate[[#This Row],[Currency]],$I$4:$I$64,0)) -> 0.2666666667 | G37: Pakistan Rupee | H37: 94.2144 | I37: PKR | L37: Sri Lanka | M37: Sri Lanka
B38: MAD | C38: =1/INDEX($H$4:$H$64,MATCH(tblXrate[[#This Row],[Currency]],$I$4:$I$64,0)) -> 0.1145475372 | G38: Philippine Peso | H38: 42.1851 | I38: PHP | L38: Belgium | M38: Belgium
B39: MUR | C39: =1/INDEX($H$4:$H$64,MATCH(tblXrate[[#This Row],[Currency]],$I$4:$I$64,0)) -> 0.03255642843 | G39: Qatari Rial | H39: 3.64 | I39: QAR | L39: Dubai | M39: Dubai
B40: NOK | C40: =1/INDEX($H$4:$H$64,MATCH(tblXrate[[#This Row],[Currency]],$I$4:$I$64,0)) -> 0.1692511314 | G40: Romanian Leu | H40: 3.51354 | I40: RON | L40: Ukraine | M40: Ukraine
B41: CHF | C41: =1/INDEX($H$4:$H$64,MATCH(tblXrate[[#This Row],[Currency]],$I$4:$I$64,0)) -> 1.057873062 | G41: Russian Ruble | H41: 32.5458 | I41: RUB | L41: Kuwait | M41: Kuwait
B42: ETB | C42: =1/INDEX($H$4:$H$64,MATCH(tblXrate[[#This Row],[Currency]],$I$4:$I$64,0)) -> 0.05656108597 | G42: Saudi Riyal | H42: 3.75 | I42: SAR | L42: iran | M42: iran
G43: Singapore Dollar | H43: 1.26771 | I43: SGD | L43: Qatar | M43: Qatar
G44: South African Rand | H44: 8.20198 | I44: ZAR | L44: Nigeria | M44: Nigeria
G45: South Korean Won | H45: 1151.09 | I45: KRW | L45: Finland | M45: Finland
G46: Sri Lanka Rupee | H46: 132.907 | I46: LKR | L46: Europe | M46: Europe
G47: Swedish Krona | H47: 6.96111 | I47: SEK | L47: Japan | M47: Japan
G48: Swiss Franc | H48: 0.945293 | I48: CHF | L48: Brasil | M48: Brazil
G49: Taiwan Dollar | H49: 29.8594 | I49: TWD | L49: nz | M49: New Zealand
G50: Thai Baht | H50: 31.5003 | I50: THB | L50: Greece | M50: Greece
G51: Trinidad/Tobago Dollar | H51: 6.39122 | I51: TTD | L51: ksa | M51: USA
G52: Turkish Lira | H52: 1.79447 | I52: TRY | L52: Panama | M52: Panama
G53: Venezuelan Bolivar | H53: 4.29402 | I53: VEF | L53: Turkey | M53: Turkey
G54: UAE Dirham | H54: 3.67351 | I54: AED | L54: Sweden | M54: Sweden
G55: Bangladesh Takha | H55: 81.8274 | I55: BDT | L55: china | M55: china
G56: Costarican CRC | H56: 498.05 | I56: Costarican | L56: Bangladesh | M56: Bangladesh
G57: Egyptian Pound | H57: 6.051 | I57: Egypt | L57: Croatia | M57: Croatia
G58: Nigerian Naira | H58: 162.25 | I58: NAIRA | L58: United Arab Emirates | M58: UAE
G59: Dominican Peso | H59: 38.95 | I59: DOP | L59: MÃ©xico | M59: Mexico
G60: Polish Zloty | H60: 3.32984 | I60: PLN | L60: Zambia | M60: Zambia
G61: Kenyan Shilling | H61: 83.5 | I61: Kenya | L61: Tunisia | M61: Tunisia
G62: Mongolian Tughrik | H62: 1322 | I62: Mongolian | L62: Saudi Arabai | M62: Saudi Arabia
G63: Moroccan Dirham | H63: 8.73 | I63: MAD | L63: Ethiopia | M63: Ethiopia
G64: Ethiopian Birr | H64: 17.68 | I64: ETB | L64: CEE | M64: CEE
L65: SouthAfrica | M65: South Africa
L66: Central America | M66: Central America
L67: Uruguay | M67: Uruguay
L68: Kenya | M68: Kenya
L69: Republica Dominicana | M69: Republica Dominicana
L70: Kingdom of Saudi Arabia | M70: Saudi Arabia
L71: Slovakia | M71: Slovakia
L72: Austria | M72: Austria
L73: Guyana | M73: Guyana
L74: Azerbaijan | M74: Azerbaijan
L75: Bulgaria | M75: Bulgaria
L76: Kuwait | M76: Kuwait
L77: Peru | M77: Peru
L78: Vietnam | M78: Vietnam
L79: Armenia | M79: Armenia
L80: Zimbabwe | M80: Zimbabwe
L81: RSA | M81: South Africa
L82: Libya | M82: Libya
L83: self-employed | M83: self-employed
L84: Lithuania | M84: Lithuania
L85: Somalia | M85: Somalia
L86: Colombia - South America | M86: Colombia
L87: BRA | M87: Brazil
L88: mainland Europe (Euro zone) | M88: Europe
L89: Thailand | M89: Thailand
L90: Continental Europe | M90: CEE
L91: Asia | M91: Asia
L92: Mauritius | M92: Mauritius
L93: Cambodia | M93: Cambodia
L94: Costa Rica | M94: Costa Rica
L95: Viet Nam | M95: Viet Nam
L96: Mongolia | M96: Mongolia
L97: Estonia | M97: Estonia
L98: Montenegro | M98: Montenegro
L99: EU | M99: Europe
L100: Morocco | M100: Morocco
L101: Republic of Georgia | M101: Republic of Georgia
L102: mozambique | M102: mozambique
L103: europe/Croatia | M103: Croatia
L104: Myanmar | M104: Myanmar
L105: Bermuda | M105: Bermuda
L106: Myanmar [Burma] | M106: Myanmar
L107: FR | M107: France
L108: MYS | M108: MYS
L109: Bhutan | M109: Bhutan
L110: Baltic | M110: Baltic
L111: Slovenia | M111: Slovenia
L112: New Zealand | M112: New Zealand
L113: Bolivia | M113: Bolivia
L114: Czech Republic | M114: Czech Republic
L115: Ghana | M115: Ghana
L116: bangkok | M116: Thailand
L117: srilanka | M117: Sri Lanka
L118: NL | M118: Netherlands
L119: Hong Kong | M119: Hong Kong
L120: nld | M120: New Zealand
L121: Aruba | M121: Aruba
L122: DK | M122: Denmark
L123: Iceland | M123: Iceland
L124: Dominican Republic | M124: Dominican Republic
L125: Uganda | M125: Uganda
L126: Oman | M126: Oman
L127: Inonesia | M127: Indonesia
L128: Argentina | M128: Argentina
L129: United Arab Emriate | M129: UAE
L130: Pakistan, Angola | M130: Pakistan
L131: Canad | M131: Canada
L132: Egypt | M132: Egypt
L133: UAE | M133: UAE
L134: Paraguay | M134: Paraguay
L135: Latin America | M135: Latin America
L136: Albania | M136: Albania
L137: Lesotho | M137: Lesotho

Sheet Sheet4 (hidden)
A1: WORLD EXCEL SALARY DATA ANALYSIS - JUNE 2012 (Source: Chandoo.org)
A2: Continent | B2: Sum of Salary in USD | I2: Job Type | J2: Count | K2: %
A3: S. AMERICA | B3: 1025690.731 | I3: Accountant | J3: 135 | K3: =J3/$J$13 -> 0.07169410515
A4: AFRICA | B4: 1575309.804 | I4: Analyst | J4: 743 | K4: 0.3945831121
A5: ASIA | B5: 12754204.42 | I5: Consultant | J5: 90 | K5: 0.0477960701
A6: EUROPE | B6: 19138405.72 | I6: Controller | J6: 67 | K6: 0.03558151885
A7: N. AMERICA | B7: 50731496.5 | I7: CXO or Top Mgmt. | J7: 75 | K7: 0.03983005842
A8: OCEANIA | B8: 8575781.343 | I8: Engineer | J8: 74 | K8: 0.03929899097
A9: Grand Total | B9: 93800888.52 | I9: Manager | J9: 558 | K9: 0.2963356346
A10: Job Type | B10: Sum of Salary in USD | I10: Misc. | J10: 7 | K10: 0.003717472119
A11: Accountant | B11: 7316519.479 | I11: Reporting | J11: 83 | K11: 0.04407859798
A12: Analyst | B12: 34397756.68 | I12: Specialist | J12: 51 | K12: 0.02708443972
A13: Consultant | B13: 5665565.99 | I13: Grand Total | J13: 1883 | K13: 1
A14: Controller | B14: 4361963.245
A15: CXO or Top Mgmt. | B15: 7294940.671
A16: Engineer | B16: 3826921.205
A17: Manager | B17: 25940438.32
A18: Misc. | B18: 321666.3395
A19: Reporting | B19: 1624655.158
A20: Specialist | B20: 3050461.433
A21: Grand Total | B21: 93800888.52
A22: Yrs of Exp. | B22: Sum Amt. | C22: %
A23: >5<=10 | B23: 22376146.3 | C23: =B23/$B$27 -> 0.2385494066
A24: >20 | B24: 23242055.08 | C24: =B24/$B$27 -> 0.2477807561
A25: >10<=20 | B25: 26656701.84 | C25: =B25/$B$27 -> 0.2841838948
A26: <=5 | B26: 21525985.3 | C26: =B26/$B$27 -> 0.2294859424
A27: Total: | B27: 93800888.52 | C27: =B27/$B$27 -> 1

Sheet Sheet7
I8: Entry for Chandoo.org's Excel Salary Data Dashboard Contest
L12: by
L14: Krishnasamy Mohan
L15: kmohan19622010@gmail.com

Sheet Excel Salary Dashboard
B1: World Excel Professionals Salary Data - Dash Board: | G1: Top 10 Best Hourly Rate by Country:(For Workers)
G2: Rank# | H2: Country | I2: Hourly Rate (US$)
B3: =Y18 -> Total Salary | C3: =Z18 -> Head Count | D3: Hour_count | E3: Average hourly rate | G3: 1 | H3: =OFFSET(Sheet1!$A$1,119-'Excel Salary Dashboard'!G3,0) -> Sweden | I3: =VLOOKUP(H3,Sheet1!$A$17:$B$2118,2,0) -> 91.32420091
B4: =Y26 -> 93.80088852 | C4: =Z26 -> 1883 | D4: 10215 | E4: 198.5559221 | G4: =G3+1 -> 2 | H4: =OFFSET(Sheet1!$A$1,119-'Excel Salary Dashboard'!G4,0) -> Central America | I4: =VLOOKUP(H4,Sheet1!$A$17:$B$2118,2,0) -> 86.75799087
B5: in USD Millions | C5: Numbers | D5: Hours | E5: USD | G5: =G4+1 -> 3 | H5: =OFFSET(Sheet1!$A$1,119-'Excel Salary Dashboard'!G5,0) -> Lesotho | I5: =VLOOKUP(H5,Sheet1!$A$17:$B$2118,2,0) -> 81.09589041
B6: =IFERROR(HYPERLINK(highlightSeries(B3)),"6") -> 6 | C6: =IFERROR(HYPERLINK(highlightSeries(C3)),"6") -> 6 | D6: =IFERROR(HYPERLINK(highlightSeries(D3)),"6") -> 6 | E6: =IFERROR(HYPERLINK(highlightSeries(E3)),"6") -> 6 | G6: =G5+1 -> 4 | H6: =OFFSET(Sheet1!$A$1,119-'Excel Salary Dashboard'!G6,0) -> Europe | I6: =VLOOKUP(H6,Sheet1!$A$17:$B$2118,2,0) -> 68.45074603
G7: =G6+1 -> 5 | H7: =OFFSET(Sheet1!$A$1,119-'Excel Salary Dashboard'!G7,0) -> Switzerland | I7: =VLOOKUP(H7,Sheet1!$A$17:$B$2118,2,0) -> 48.85844749
G8: =G7+1 -> 6 | H8: =OFFSET(Sheet1!$A$1,119-'Excel Salary Dashboard'!G8,0) -> Oman | I8: =VLOOKUP(H8,Sheet1!$A$17:$B$2118,2,0) -> 46.02739726
G9: =G8+1 -> 7 | H9: =OFFSET(Sheet1!$A$1,119-'Excel Salary Dashboard'!G9,0) -> Uganda | I9: =VLOOKUP(H9,Sheet1!$A$17:$B$2118,2,0) -> 45.66210046
G10: =G9+1 -> 8 | H10: =OFFSET(Sheet1!$A$1,119-'Excel Salary Dashboard'!G10,0) -> Somalia | I10: =VLOOKUP(H10,Sheet1!$A$17:$B$2118,2,0) -> 35.61643836
G11: =G10+1 -> 9 | H11: =OFFSET(Sheet1!$A$1,119-'Excel Salary Dashboard'!G11,0) -> Czech Republic | I11: =VLOOKUP(H11,Sheet1!$A$17:$B$2118,2,0) -> 32.87671233
G12: =G11+1 -> 10 | H12: =OFFSET(Sheet1!$A$1,119-'Excel Salary Dashboard'!G12,0) -> Hong Kong | I12: =VLOOKUP(H12,Sheet1!$A$17:$B$2118,2,0) -> 27.39726027
G14: Top 10 Least Hourly Rate by Country: (For Employers)
G15: Rank# | H15: Country | I15: Hourly Rate (US$) | AC15: ="Continent-wise Breakup of "&valSelOption -> Continent-wise Breakup of Head Count
G16: 1 | H16: =OFFSET(Sheet1!$A$1,15+'Excel Salary Dashboard'!G16,0) -> Pakistan | I16: =VLOOKUP(H16,Sheet1!$A$17:$B$2118,2,0) -> 0.6542931401
G17: =G16+1 -> 2 | H17: =OFFSET(Sheet1!$A$1,15+'Excel Salary Dashboard'!G17,0) -> Sri Lanka | I17: =VLOOKUP(H17,Sheet1!$A$17:$B$2118,2,0) -> 0.8245543207 | AC17: =MATCH(valSelOption,$Y$18:$AB$18,0) -> 2
G18: =G17+1 -> 3 | H18: =OFFSET(Sheet1!$A$1,15+'Excel Salary Dashboard'!G18,0) -> India | I18: =VLOOKUP(H18,Sheet1!$A$17:$B$2118,2,0) -> 0.8781986312 | X18: Month | Y18: Total Salary | Z18: Head Count | AA18: Hour_count | AB18: Average hourly rate | AC18: Head Count
G19: =G18+1 -> 4 | H19: =OFFSET(Sheet1!$A$1,15+'Excel Salary Dashboard'!G19,0) -> Ethiopia | I19: =VLOOKUP(H19,Sheet1!$A$17:$B$2118,2,0) -> 1.348788198 | X19: S. AMERICA | Y19: 1.025690731 | Z19: 31 | AA19: 187 | AB19: 18.67540448 | AC19: =INDEX($Y$19:$AB$24,,$AC$17) -> 31
G20: =G19+1 -> 5 | H20: =OFFSET(Sheet1!$A$1,15+'Excel Salary Dashboard'!G20,0) -> Brazil | I20: =VLOOKUP(H20,Sheet1!$A$17:$B$2118,2,0) -> 1.556506849 | X20: AFRICA | Y20: 1.575309804 | Z20: 37 | AA20: 238 | AB20: 20.40972514 | AC20: 37
G21: =G20+1 -> 6 | H21: =OFFSET(Sheet1!$A$1,15+'Excel Salary Dashboard'!G21,0) -> Philippines | I21: =VLOOKUP(H21,Sheet1!$A$17:$B$2118,2,0) -> 1.818469762 | X21: OCEANIA | Y21: 8.575781343 | Z21: 96 | AA21: 477 | AB21: 11.33806158 | AC21: 96
G22: =G21+1 -> 7 | H22: =OFFSET(Sheet1!$A$1,15+'Excel Salary Dashboard'!G22,0) -> Zambia | I22: =VLOOKUP(H22,Sheet1!$A$17:$B$2118,2,0) -> 2.054794521 | X22: ASIA | Y22: 12.75420442 | Z22: 721 | AA22: 3922 | AB22: 41.41230014 | AC22: 721
G23: =G22+1 -> 8 | H23: =OFFSET(Sheet1!$A$1,15+'Excel Salary Dashboard'!G23,0) -> Armenia | I23: =VLOOKUP(H23,Sheet1!$A$17:$B$2118,2,0) -> 2.054794521 | X23: EUROPE | Y23: 19.13840572 | Z23: 304 | AA23: 1622 | AB23: 45.15914744 | AC23: 304
G24: =G23+1 -> 9 | H24: =OFFSET(Sheet1!$A$1,15+'Excel Salary Dashboard'!G24,0) -> Bhutan | I24: =VLOOKUP(H24,Sheet1!$A$17:$B$2118,2,0) -> 2.191780822 | X24: N. AMERICA | Y24: 50.7314965 | Z24: 694 | AA24: 3769 | AB24: 61.56128329 | AC24: 694
G25: =G24+1 -> 10 | H25: =OFFSET(Sheet1!$A$1,15+'Excel Salary Dashboard'!G25,0) -> Dominican Republic | I25: =VLOOKUP(H25,Sheet1!$A$17:$B$2118,2,0) -> 2.270205479
X26: Total | Y26: =SUM(Y19:Y24) -> 93.80088852 | Z26: =SUM(Z19:Z24) -> 1883 | AA26: =SUM(AA19:AA24) -> 10215 | AB26: =SUM(AB19:AB24) -> 198.5559221

Sheet Sheet2 (hidden)
A1: Algeria | B1: AFRICA
A2: Angola | B2: AFRICA
A3: Benin | B3: AFRICA
A4: Botswana | B4: AFRICA
A5: Burkina | B5: AFRICA
A6: Burundi | B6: AFRICA
A7: Cameroon | B7: AFRICA
A8: Cape Verde | B8: AFRICA
A9: Central African Republic | B9: AFRICA
A10: Chad | B10: AFRICA
A11: Comoros | B11: AFRICA
A12: Congo | B12: AFRICA
A13: Congo, Democratic Republic of | B13: AFRICA
A14: Djibouti | B14: AFRICA
A15: Egypt | B15: AFRICA
A16: Equatorial Guinea | B16: AFRICA
A17: Eritrea | B17: AFRICA
A18: Ethiopia | B18: AFRICA
A19: Gabon | B19: AFRICA
A20: Gambia | B20: AFRICA
A21: Ghana | B21: AFRICA
A22: Guinea | B22: AFRICA
A23: Guinea-Bissau | B23: AFRICA
A24: Ivory Coast | B24: AFRICA
A25: Kenya | B25: AFRICA
A26: Lesotho | B26: AFRICA
A27: Liberia | B27: AFRICA
A28: Libya | B28: AFRICA
A29: Madagascar | B29: AFRICA
A30: Malawi | B30: AFRICA
A31: Mali | B31: AFRICA
A32: Mauritania | B32: AFRICA
A33: Mauritius | B33: AFRICA
A34: Morocco | B34: AFRICA
A35: Mozambique | B35: AFRICA
A36: Namibia | B36: AFRICA
A37: Niger | B37: AFRICA
A38: Nigeria | B38: AFRICA
A39: Rwanda | B39: AFRICA
A40: Sao Tome and Principe | B40: AFRICA
A41: Senegal | B41: AFRICA
A42: Seychelles | B42: AFRICA
A43: Sierra Leone | B43: AFRICA
A44: Somalia | B44: AFRICA
A45: South Africa | B45: AFRICA
A46: South Sudan | B46: AFRICA
A47: Sudan | B47: AFRICA
A48: Swaziland | B48: AFRICA
A49: Tanzania | B49: AFRICA
A50: Togo | B50: AFRICA
A51: Tunisia | B51: AFRICA
A52: Uganda | B52: AFRICA
A53: Zambia | B53: AFRICA
A54: Zimbabwe | B54: AFRICA
A55: Afghanistan | B55: ASIA
A56: Bahrain | B56: ASIA
A57: Bangladesh | B57: ASIA
A58: Bhutan | B58: ASIA
A59: Brunei | B59: ASIA
A60: Burma (Myanmar) | B60: ASIA
A61: Cambodia | B61: ASIA
A62: China | B62: ASIA
A63: East Timor | B63: ASIA
A64: India | B64: ASIA
A65: Indonesia | B65: ASIA
A66: Iran | B66: ASIA
A67: Iraq | B67: ASIA
A68: Israel | B68: ASIA
A69: Japan | B69: ASIA
A70: Jordan | B70: ASIA
A71: Kazakhstan | B71: ASIA
A72: Korea, North | B72: ASIA
A73: Korea, South | B73: ASIA
A74: Kuwait | B74: ASIA
A75: Kyrgyzstan | B75: ASIA
A76: Laos | B76: ASIA
A77: Lebanon | B77: ASIA
A78: Malaysia | B78: ASIA
A79: Maldives | B79: ASIA
A80: Mongolia | B80: ASIA
A81: Nepal | B81: ASIA
A82: Oman | B82: ASIA
A83: Pakistan | B83: ASIA
A84: Philippines | B84: ASIA
A85: Qatar | B85: ASIA
A86: Russia | B86: ASIA
A87: Saudi Arabia | B87: ASIA
A88: Singapore | B88: ASIA
A89: Sri Lanka | B89: ASIA
A90: Syria | B90: ASIA
A91: Tajikistan | B91: ASIA
A92: Thailand | B92: ASIA
A93: Turkey | B93: ASIA
A94: Turkmenistan | B94: ASIA
A95: UAE | B95: ASIA
A96: Uzbekistan | B96: ASIA
A97: Vietnam | B97: ASIA
A98: Yemen | B98: ASIA
A99: Albania | B99: EUROPE
A100: Andorra | B100: EUROPE
A101: Armenia | B101: EUROPE
A102: Austria | B102: EUROPE
A103: Azerbaijan | B103: EUROPE
A104: Belarus | B104: EUROPE
A105: Belgium | B105: EUROPE
A106: Bosnia and Herzegovina | B106: EUROPE
A107: Bulgaria | B107: EUROPE
A108: Croatia | B108: EUROPE
A109: Cyprus | B109: EUROPE
A110: Czech Republic | B110: EUROPE
A111: Denmark | B111: EUROPE
A112: Estonia | B112: EUROPE
A113: Finland | B113: EUROPE
A114: France | B114: EUROPE
A115: Georgia | B115: EUROPE
A116: Germany | B116: EUROPE
A117: Greece | B117: EUROPE
A118: Hungary | B118: EUROPE
A119: Iceland | B119: EUROPE
A120: Ireland | B120: EUROPE
A121: Italy | B121: EUROPE
A122: Latvia | B122: EUROPE
A123: Liechtenstein | B123: EUROPE
A124: Lithuania | B124: EUROPE
A125: Luxembourg | B125: EUROPE
A126: Macedonia | B126: EUROPE
A127: Malta | B127: EUROPE
A128: Moldova | B128: EUROPE
A129: Monaco | B129: EUROPE
A130: Montenegro | B130: EUROPE
A131: Netherlands | B131: EUROPE
A132: Norway | B132: EUROPE
A133: Poland | B133: EUROPE
A134: Portugal | B134: EUROPE
A135: Romania | B135: EUROPE
A136: San Marino | B136: EUROPE
A137: Serbia | B137: EUROPE
A138: Slovakia | B138: EUROPE
A139: Slovenia | B139: EUROPE
A140: Spain | B140: EUROPE
A141: Sweden | B141: EUROPE
A142: Switzerland | B142: EUROPE
A143: Ukraine | B143: EUROPE
A144: UK | B144: EUROPE
A145: Vatican City | B145: EUROPE
A146: Antigua and Barbuda | B146: N. AMERICA
A147: Bahamas | B147: N. AMERICA
A148: Barbados | B148: N. AMERICA
A149: Belize | B149: N. AMERICA
A150: Canada | B150: N. AMERICA
A151: Costa Rica | B151: N. AMERICA
A152: Cuba | B152: N. AMERICA
A153: Dominica | B153: N. AMERICA
A154: Dominican Republic | B154: N. AMERICA
A155: El Salvador | B155: N. AMERICA
A156: Grenada | B156: N. AMERICA
A157: Guatemala | B157: N. AMERICA
A158: Haiti | B158: N. AMERICA
A159: Honduras | B159: N. AMERICA
A160: Jamaica | B160: N. AMERICA
A161: Mexico | B161: N. AMERICA
A162: Nicaragua | B162: N. AMERICA
A163: Panama | B163: N. AMERICA
A164: Saint Kitts and Nevis | B164: N. AMERICA
A165: Saint Lucia | B165: N. AMERICA
A166: Saint Vincent and the Grenadines | B166: N. AMERICA
A167: Trinidad and Tobago | B167: N. AMERICA
A168: USA | B168: N. AMERICA
A169: Australia | B169: OCEANIA
A170: Fiji | B170: OCEANIA
A171: Kiribati | B171: OCEANIA
A172: Marshall Islands | B172: OCEANIA
A173: Micronesia | B173: OCEANIA
A174: Nauru | B174: OCEANIA
A175: New Zealand | B175: OCEANIA
A176: Palau | B176: OCEANIA
A177: Papua New Guinea | B177: OCEANIA
A178: Samoa | B178: OCEANIA
A179: Solomon Islands | B179: OCEANIA
A180: Tonga | B180: OCEANIA
A181: Tuvalu | B181: OCEANIA
A182: Vanuatu | B182: OCEANIA
A183: Argentina | B183: S. AMERICA
A184: Bolivia | B184: S. AMERICA
A185: Brazil | B185: S. AMERICA
A186: Chile | B186: S. AMERICA
A187: Colombia | B187: S. AMERICA
A188: Ecuador | B188: S. AMERICA
A189: Guyana | B189: S. AMERICA
A190: Paraguay | B190: S. AMERICA
A191: Peru | B191: S. AMERICA
A192: Suriname | B192: S. AMERICA
A193: Uruguay | B193: S. AMERICA
A194: Venezuela | B194: S. AMERICA

Sheet Data (hidden)
B1: Excel Salary Survey Data | G1: 12
B3: Note: Experience data is not available for first few hundred rows.
B5: Unique ID | C5: Timestamp | D5: Your Salary | E5: clean Salary (in local currency) | F5: Currency | G5: Salary in USD | H5: Your Job Title | I5: Job Type | J5: Where do you work | K5: clean Country | L5: How many hours of a day you work on Excel | M5: Years of Experience | N5: Continent | O5: hourly_rate
B6: ID0001 | C6: 2012-05-25T03:11:32 | D6: 5846 | E6: 5846 | F6: USD | G6: =tblSalaries[[#This Row],[clean Salary (in local currency)]]*VLOOKUP(tblSalaries[[#This Row],[Currency]],tblXrate[],2,FALSE) -> 5846 | H6: MIS Analyst | I6: Analyst | J6: India | K6: =VLOOKUP(tblSalaries[[#This Row],[Where do you work]],tblCountries[[Actual]:[Mapping]],2,FALSE) -> India | L6: 6 | M6: >10<=20 | N6: ASIA | O6: =(G6/365)/L6 -> 2.669406393
B7: ID0002 | C7: 2012-05-25T03:13:13 | D7: 15000 usd | E7: 15000 | F7: USD | G7: =tblSalaries[[#This Row],[clean Salary (in local currency)]]*VLOOKUP(tblSalaries[[#This Row],[Currency]],tblXrate[],2,FALSE) -> 15000 | H7: cost control | I7: Controller | J7: europe/Croatia | K7: =VLOOKUP(tblSalaries[[#This Row],[Where do you work]],tblCountries[[Actual]:[Mapping]],2,FALSE) -> Croatia | L7: 8 | M7: >20 | N7: EUROPE | O7: =(G7/365)/L7 -> 5.136986301
B8: ID0003 | C8: 2012-05-25T03:16:26 | D8: 58000 | E8: 58000 | F8: USD | G8: =tblSalaries[[#This Row],[clean Salary (in local currency)]]*VLOOKUP(tblSalaries[[#This Row],[Currency]],tblXrate[],2,FALSE) -> 58000 | H8: Financial Analyst | I8: Analyst | J8: USA | K8: =VLOOKUP(tblSalaries[[#This Row],[Where do you work]],tblCountries[[Actual]:[Mapping]],2,FALSE) -> USA | L8: 8 | M8: <=5 | N8: N. AMERICA | O8: =(G8/365)/L8 -> 19.8630137
B9: ID0004 | C9: 2012-05-25T03:23:42 | D9: 48000 | E9: 48000 | F9: USD | G9: =tblSalaries[[#This Row],[clean Salary (in local currency)]]*VLOOKUP(tblSalaries[[#This Row],[Currency]],tblXrate[],2,FALSE) -> 48000 | H9: Quality Control | I9: Controller | J9: Pakistan | K9: =VLOOKUP(tblSalaries[[#This Row],[Where do you work]],tblCountries[[Actual]:[Mapping]],2,FALSE) -> Pakistan | L9: 3 | M9: <=5 | N9: ASIA | O9: =(G9/365)/L9 -> 43.83561644
B10: ID0005 | C10: 2012-05-25T03:27:04 | D10: 54000 | E10: 54000 | F10: USD | G10: =tblSalaries[[#This Row],[clean Salary (in local currency)]]*VLOOKUP(tblSalaries[[#This Row],[Currency]],tblXrate[],2,FALSE) -> 54000 | H10: Quality Engineer | I10: Engineer | J10: USA | K10: =VLOOKUP(tblSalaries[[#This Row],[Where do you work]],tblCountries[[Actual]:[Mapping]],2,FALSE) -> USA | L10: 8 | M10: >10<=20 | N10: N. AMERICA | O10: =(G10/365)/L10 -> 18.49315068
B11: ID0006 | C11: 2012-05-25T03:28:28 | D11: 41731 | E11: 41731 | F11: USD | G11: =tblSalaries[[#This Row],[clean Salary (in local currency)]]*VLOOKUP(tblSalaries[[#This Row],[Currency]],tblXrate[],2,FALSE) -> 41731 | H11: Analyst | I11: Analyst | J11: Iceland | K11: =VLOOKUP(tblSalaries[[#This Row],[Where do you work]],tblCountries[[Actual]:[Mapping]],2,FALSE) -> Iceland | L11: 8 | M11: <=5 | N11: EUROPE | O11: =(G11/365)/L11 -> 14.29143836
B12: ID0007 | C12: 2012-05-25T03:33:51 | D12: 145000 | E12: 145000 | F12: EUR | G12: =tblSalaries[[#This Row],[clean Salary (in local currency)]]*VLOOKUP(tblSalaries[[#This Row],[Currency]],tblXrate[],2,FALSE) -> 184207.9187 | H12: senior project manager | I12: Manager | J12: Germany | K12: =VLOOKUP(tblSalaries[[#This Row],[Where do you work]],tblCountries[[Actual]:[Mapping]],2,FALSE) -> Germany | L12: 2 | M12: >20 | N12: EUROPE | O12: =(G12/365)/L12 -> 252.3396146
B13: ID0008 | C13: 2012-05-25T03:36:37 | D13: 12000 | E13: 12000 | F13: USD | G13: =tblSalaries[[#This Row],[clean Salary (in local currency)]]*VLOOKUP(tblSalaries[[#This Row],[Currency]],tblXrate[],2,FALSE) -> 12000 | H13: Assistant SP&A | I13: Analyst | J13: Ukraine | K13: =VLOOKUP(tblSalaries[[#This Row],[Where do you work]],tblCountries[[Actual]:[Mapping]],2,FALSE) -> Ukraine | L13: 8 | M13: >20 | N13: EUROPE | O13: =(G13/365)/L13 -> 4.109589041
B14: ID0009 | C14: 2012-05-25T03:37:17 | D14: 44000 $ | E14: 44000 | F14: USD | G14: =tblSalaries[[#This Row],[clean Salary (in local currency)]]*VLOOKUP(tblSalaries[[#This Row],[Currency]],tblXrate[],2,FALSE) -> 44000 | H14: CFO | I14: CXO or Top Mgmt. | J14: Portugal | K14: =VLOOKUP(tblSalaries[[#This Row],[Where do you work]],tblCountries[[Actual]:[Mapping]],2,FALSE) -> Portugal | L14: 2 | M14: >20 | N14: EUROPE | O14: =(G14/365)/L14 -> 60.2739726
B15: ID0010 | C15: 2012-05-25T03:38:57 | D15: PKR 8,000 | E15: 1152000 | F15: PKR | G15: =tblSalaries[[#This Row],[clean Salary (in local currency)]]*VLOOKUP(tblSalaries[[#This Row],[Currency]],tblXrate[],2,FALSE) -> 12227.4302 | H15: Audit Trainee | I15: Accountant | J15: Pakistan | K15: =VLOOKUP(tblSalaries[[#This Row],[Where do you work]],tblCountries[[Actual]:[Mapping]],2,FALSE) -> Pakistan | L15: 8 | M15: >5<=10 | N15: ASIA | O15: =(G15/365)/L15 -> 4.187476096
B16: ID0011 | C16: 2012-05-25T03:43:45 | D16: â‚¬ 51650 | E16: 51650 | F16: EUR | G16: =tblSalaries[[#This Row],[clean Salary (in local currency)]]*VLOOKUP(tblSalaries[[#This Row],[Currency]],tblXrate[],2,FALSE) -> 65616.13102 | H16: Training Specialist | I16: Specialist | J16: Ireland | K16: =VLOOKUP(tblSalaries[[#This Row],[Where do you work]],tblCountries[[Actual]:[Mapping]],2,FALSE) -> Ireland | L16: 3 | M16: >20 | N16: EUROPE | O16: =(G16/365)/L16 -> 59.92340733
B17: ID0012 | C17: 2012-05-25T03:43:56 | D17: 14000 | E17: 14000 | F17: USD | G17: =tblSalaries[[#This Row],[clean Salary (in local currency)]]*VLOOKUP(tblSalaries[[#This Row],[Currency]],tblXrate[],2,FALSE) -> 14000 | H17: quality engineer | I17: Engineer | J17: Hungary | K17: =VLOOKUP(tblSalaries[[#This Row],[Where do you work]],tblCountries[[Actual]:[Mapping]],2,FALSE) -> Hungary | L17: 6 | M17: >5<=10 | N17: EUROPE | O17: =(G17/365)/L17 -> 6.392694064
B18: ID0013 | C18: 2012-05-25T03:48:53 | D18: 749000 INR | E18: 749000 | F18: INR | G18: =tblSalaries[[#This Row],[clean Salary (in local currency)]]*VLOOKUP(tblSalaries[[#This Row],[Currency]],tblXrate[],2,FALSE) -> 13338.1296 | H18: Senion Analyst | I18: Analyst | J18: India | K18: =VLOOKUP(tblSalaries[[#This Row],[Where do you work]],tblCountries[[Actual]:[Mapping]],2,FALSE) -> India | L18: 8 | M18: >10<=20 | N18: ASIA | O18: =(G18/365)/L18 -> 4.567852602
B19: ID0014 | C19: 2012-05-25T03:50:58 | D19: 49000 | E19: 49000 | F19: USD | G19: =tblSalaries[[#This Row],[clean Salary (in local currency)]]*VLOOKUP(tblSalaries[[#This Row],[Currency]],tblXrate[],2,FALSE) -> 49000 | H19: business analyst | I19: Analyst | J19: USA | K19: =VLOOKUP(tblSalaries[[#This Row],[Where do you work]],tblCountries[[Actual]:[Mapping]],2,FALSE) -> USA | L19: 8 | M19: >10<=20 | N19: N. AMERICA | O19: =(G19/365)/L19 -> 16.78082192
B20: ID0015 | C20: 2012-05-25T03:53:22 | D20: 85000 | E20: 85000 | F20: USD | G20: =tblSalaries[[#This Row],[clean Salary (in local currency)]]*VLOOKUP(tblSalaries[[#This Row],[Currency]],tblXrate[],2,FALSE) -> 85000 | H20: Project Engineer | I20: Engineer | J20: USA | K20: =VLOOKUP(tblSalaries[[#This Row],[Where do you work]],tblCountries[[Actual]:[Mapping]],2,FALSE) -> USA | L20: 2 | M20: <=5 | N20: N. AMERICA | O20: =(G20/365)/L20 -> 116.4383562
B21: ID0016 | C21: 2012-05-25T03:56:40 | D21: 75000 | E21: 75000 | F21: USD | G21: =tblSalaries[[#This Row],[clean Salary (in local currency)]]*VLOOKUP(tblSalaries[[#This Row],[Currency]],tblXrate[],2,FALSE) -> 75000 | H21: Sr Project Engineer | I21: Engineer | J21: USA | K21: =VLOOKUP(tblSalaries[[#This Row],[Where do you work]],tblCountries[[Actual]:[Mapping]],2,FALSE) -> USA | L21: 8 | M21: >10<=20 | N21: N. AMERICA | O21: =(G21/365)/L21 -> 25.68493151
B22: ID0017 | C22: 2012-05-25T04:10:11 | D22: 107000 | E22: 107000 | F22: USD | G22: =tblSalaries[[#This Row],[clean Salary (in local currency)]]*VLOOKUP(tblSalaries[[#This Row],[Currency]],tblXrate[],2,FALSE) -> 107000 | H22: Business Development | I22: Manager | J22: Switzerland | K22: =VLOOKUP(tblSalaries[[#This Row],[Where do you work]],tblCountries[[Actual]:[Mapping]],2,FALSE) -> Switzerland | L22: 6 | M22: >20 | N22: EUROPE | O22: =(G22/365)/L22 -> 48.85844749
B23: ID0018 | C23: 2012-05-25T04:10:44 | D23: 45000 | E23: 45000 | F23: USD | G23: =tblSalaries[[#This Row],[clean Salary (in local currency)]]*VLOOKUP(tblSalaries[[#This Row],[Currency]],tblXrate[],2,FALSE) -> 45000 | H23: Excel Report Writer | I23: Reporting | J23: South Africa | K23: =VLOOKUP(tblSalaries[[#This Row],[Where do you work]],tblCountries[[Actual]:[Mapping]],2,FALSE) -> South Africa | L23: 8 | M23: >10<=20 | N23: AFRICA | O23: =(G23/365)/L23 -> 15.4109589
B24: ID0019 | C24: 2012-05-25T04:16:32 | D24: 550000 | E24: 550000 | F24: INR | G24: =tblSalaries[[#This Row],[clean Salary (in local currency)]]*VLOOKUP(tblSalaries[[#This Row],[Currency]],tblXrate[],2,FALSE) -> 9794.354178 | H24: AGM | I24: Manager | J24: India | K24: =VLOOKUP(tblSalaries[[#This Row],[Where do you work]],tblCountries[[Actual]:[Mapping]],2,FALSE) -> India | L24: 3 | M24: >20 | N24: ASIA | O24: =(G24/365)/L24 -> 8.944615688
B25: ID0020 | C25: 2012-05-25T04:19:22 | D25: 50000 | E25: 50000 | F25: USD | G25: =tblSalaries[[#This Row],[clean Salary (in local currency)]]*VLOOKUP(tblSalaries[[#This Row],[Currency]],tblXrate[],2,FALSE) -> 50000 | H25: GM | I25: Manager | J25: India | K25: =VLOOKUP(tblSalaries[[#This Row],[Where do you work]],tblCountries[[Actual]:[Mapping]],2,FALSE) -> India | L25: 2 | M25: <=5 | N25: ASIA | O25: =(G25/365)/L25 -> 68.49315068
B26: ID0021 | C26: 2012-05-25T04:24:01 | D26: 13500 | E26: 13500 | F26: USD | G26: =tblSalaries[[#This Row],[clean Salary (in local currency)]]*VLOOKUP(tblSalaries[[#This Row],[Currency]],tblXrate[],2,FALSE) -> 13500 | H26: DSE Co-ordinator | I26: Manager | J26: India | K26: =VLOOKUP(tblSalaries[[#This Row],[Where do you work]],tblCountries[[Actual]:[Mapping]],2,FALSE) -> India | L26: 6 | M26: >20 | N26: ASIA | O26: =(G26/365)/L26 -> 6.164383562
B27: ID0022 | C27: 2012-05-25T04:24:12 | D27: 96000 | E27: 96000 | F27: USD | G27: =tblSalaries[[#This Row],[clean Salary (in local currency)]]*VLOOKUP(tblSalaries[[#This Row],[Currency]],tblXrate[],2,FALSE) -> 96000 | H27: Analyst | I27: Analyst | J27: USA | K27: =VLOOKUP(tblSalaries[[#This Row],[Where do you work]],tblCountries[[Actual]:[Mapping]],2,FALSE) -> USA | L27: 3 | M27: >20 | N27: N. AMERICA | O27: =(G27/365)/L27 -> 87.67123288
B28: ID0023 | C28: 2012-05-25T04:31:41 | D28: 1000000 | E28: 1000000 | F28: INR | G28: =tblSalaries[[#This Row],[clean Salary (in local currency)]]*VLOOKUP(tblSalaries[[#This Row],[Currency]],tblXrate[],2,FALSE) -> 17807.91669 | H28: Manager | I28: Manager | J28: India | K28: =VLOOKUP(tblSalaries[[#This Row],[Where do you work]],tblCountries[[Actual]:[Mapping]],2,FALSE) -> India | L28: 6 | M28: >5<=10 | N28: ASIA | O28: =(G28/365)/L28 -> 8.131468807
B29: ID0024 | C29: 2012-05-25T04:32:49 | D29: 75000 | E29: 75000 | F29: USD | G29: =tblSalaries[[#This Row],[clean Salary (in local currency)]]*VLOOKUP(tblSalaries[[#This Row],[Currency]],tblXrate[],2,FALSE) -> 75000 | H29: Marketing Director | I29: CXO or Top Mgmt. | J29: USA | K29: =VLOOKUP(tblSalaries[[#This Row],[Where do you work]],tblCountries[[Actual]:[Mapping]],2,FALSE) -> USA | L29: 6 | M29: <=5 | N29: N. AMERICA | O29: =(G29/365)/L29 -> 34.24657534
B30: ID0025 | C30: 2012-05-25T04:43:51 | D30: 40000 us | E30: 40000 | F30: USD | G30: =tblSalaries[[#This Row],[clean Salary (in local currency)]]*VLOOKUP(tblSalaries[[#This Row],[Currency]],tblXrate[],2,FALSE) -> 40000 | H30: sales and marketing | I30: Manager | J30: USA | K30: =VLOOKUP(tblSalaries[[#This Row],[Where do you work]],tblCountries[[Actual]:[Mapping]],2,FALSE) -> USA | L30: 3 | M30: >10<=20 | N30: N. AMERICA | O30: =(G30/365)/L30 -> 36.52968037
B31: ID0026 | C31: 2012-05-25T04:45:01 | D31: 60000 | E31: 60000 | F31: USD | G31: =tblSalaries[[#This Row],[clean Salary (in local currency)]]*VLOOKUP(tblSalaries[[#This Row],[Currency]],tblXrate[],2,FALSE) -> 60000 | H31: Analyst II | I31: Analyst | J31: USA | K31: =VLOOKUP(tblSalaries[[#This Row],[Where do you work]],tblCountries[[Actual]:[Mapping]],2,FALSE) -> USA | L31: 8 | M31: >20 | N31: N. AMERICA | O31: =(G31/365)/L31 -> 20.54794521
B32: ID0028 | C32: 2012-05-25T04:48:33 | D32: 2700 | E32: 32400 | F32: EUR | G32: =tblSalaries[[#This Row],[clean Salary (in local currency)]]*VLOOKUP(tblSalaries[[#This Row],[Currency]],tblXrate[],2,FALSE) -> 41160.94182 | H32: Project Leader | I32: Manager | J32: Belgium | K32: =VLOOKUP(tblSalaries[[#This Row],[Where do you work]],tblCountries[[Actual]:[Mapping]],2,FALSE) -> Belgium | L32: 6 | M32: >5<=10 | N32: EUROPE | O32: =(G32/365)/L32 -> 18.7949506
B33: ID0029 | C33: 2012-05-25T04:52:23 | D33: 900000 INR | E33: 900000 | F33: INR | G33: =tblSalaries[[#This Row],[clean Salary (in local currency)]]*VLOOKUP(tblSalaries[[#This Row],[Currency]],tblXrate[],2,FALSE) -> 16027.12502 | H33: Applications Engineer | I33: Engineer | J33: India | K33: =VLOOKUP(tblSalaries[[#This Row],[Where do you work]],tblCountries[[Actual]:[Mapping]],2,FALSE) -> India | L33: 2 | M33: >20 | N33: ASIA | O33: =(G33/365)/L33 -> 21.95496578
B34: ID0030 | C34: 2012-05-25T04:55:35 | D34: Rs 600000 | E34: 600000 | F34: INR | G34: =tblSalaries[[#This Row],[clean Salary (in local currency)]]*VLOOKUP(tblSalaries[[#This Row],[Currency]],tblXrate[],2,FALSE) -> 10684.75001 | H34: strategy manager | I34: Manager | J34: India | K34: =VLOOKUP(tblSalaries[[#This Row],[Where do you work]],tblCountries[[Actual]:[Mapping]],2,FALSE) -> India | L34: 6 | M34: >20 | N34: ASIA | O34: =(G34/365)/L34 -> 4.878881284
B35: ID0031 | C35: 2012-05-25T04:55:48 | D35: 41000 | E35: 41000 | F35: USD | G35: =tblSalaries[[#This Row],[clean Salary (in local currency)]]*VLOOKUP(tblSalaries[[#This Row],[Currency]],tblXrate[],2,FALSE) -> 41000 | H35: Chief of the department of public budget analisis and forecasting | I35: Manager | J35: Russia | K35: =VLOOKUP(tblSalaries[[#This Row],[Where do you work]],tblCountries[[Actual]:[Mapping]],2,FALSE) -> Russia | L35: 8 | M35: >10<=20 | N35: ASIA | O35: =(G35/365)/L35 -> 14.04109589
B36: ID0032 | C36: 2012-05-25T04:57:06 | D36: 360000 INR | E36: 360000 | F36: INR | G36: =tblSalaries[[#This Row],[clean Salary (in local currency)]]*VLOOKUP(tblSalaries[[#This Row],[Currency]],tblXrate[],2,FALSE) -> 6410.850007 | H36: Specialist | I36: Specialist | J36: India | K36: =VLOOKUP(tblSalaries[[#This Row],[Where do you work]],tblCountries[[Actual]:[Mapping]],2,FALSE) -> India | L36: 6 | M36: >5<=10 | N36: ASIA | O36: =(G36/365)/L36 -> 2.927328771
B37: ID0033 | C37: 2012-05-25T04:58:45 | D37: Â£35000 | E37: 35000 | F37: GBP | G37: =tblSalaries[[#This Row],[clean Salary (in local currency)]]*VLOOKUP(tblSalaries[[#This Row],[Currency]],tblXrate[],2,FALSE) -> 55166.23952 | H37: Management Information Analyst | I37: Analyst | J37: UK | K37: =VLOOKUP(tblSalaries[[#This Row],[Where do you work]],tblCountries[[Actual]:[Mapping]],2,FALSE) -> UK | L37: 8 | M37: >20 | N37: EUROPE | O37: =(G37/365)/L37 -> 18.89254778
B38: ID0035 | C38: 2012-05-25T05:01:09 | D38: 1600 $ | E38: 19200 | F38: USD | G38: =tblSalaries[[#This Row],[clean Salary (in local currency)]]*VLOOKUP(tblSalaries[[#This Row],[Currency]],tblXrate[],2,FALSE) -> 19200 | H38: Analyst | I38: Analyst | J38: Poland | K38: =VLOOKUP(tblSalaries[[#This Row],[Where do you work]],tblCountries[[Actual]:[Mapping]],2,FALSE) -> Poland | L38: 3 | M38: >10<=20 | N38: EUROPE | O38: =(G38/365)/L38 -> 17.53424658
B39: ID0036 | C39: 2012-05-25T05:04:12 | D39: 500000 | E39: 500000 | F39: INR | G39: =tblSalaries[[#This Row],[clean Salary (in local currency)]]*VLOOKUP(tblSalaries[[#This Row],[Currency]],tblXrate[],2,FALSE) -> 8903.958344 | H39: Senior Consultant | I39: Consultant | J39: India | K39: =VLOOKUP(tblSalaries[[#This Row],[Where do you work]],tblCountries[[Actual]:[Mapping]],2,FALSE) -> India | L39: 8 | M39: >20 | N39: ASIA | O39: =(G39/365)/L39 -> 3.049300803
B40: ID0037 | C40: 2012-05-25T05:07:31 | D40: 150000 | E40: 150000 | F40: USD | G40: =tblSalaries[[#This Row],[clean Salary (in local currency)]]*VLOOKUP(tblSalaries[[#This Row],[Currency]],tblXrate[],2,FALSE) -> 150000 | H40: Portfolio Manager | I40: Manager | J40: USA | K40: =VLOOKUP(tblSalaries[[#This Row],[Where do you work]],tblCountries[[Actual]:[Mapping]],2,FALSE) -> USA | L40: 3 | M40: <=5 | N40: N. AMERICA | O40: =(G40/365)/L40 -> 136.9863014
B41: ID0038 | C41: 2012-05-25T05:10:29 | D41: 69000 | E41: 69000 | F41: USD | G41: =tblSalaries[[#This Row],[clean Salary (in local currency)]]*VLOOKUP(tblSalaries[[#This Row],[Currency]],tblXrate[],2,FALSE) -> 69000 | H41: Design Engineer | I41: Engineer | J41: USA | K41: =VLOOKUP(tblSalaries[[#This Row],[Where do you work]],tblCountries[[Actual]:[Mapping]],2,FALSE) -> USA | L41: 6 | M41: >10<=20 | N41: N. AMERICA | O41: =(G41/365)/L41 -> 31.50684932
B42: ID0039 | C42: 2012-05-25T05:11:37 | D42: 30000 | E42: 30000 | F42: USD | G42: =tblSalaries[[#This Row],[clean Salary (in local currency)]]*VLOOKUP(tblSalaries[[#This Row],[Currency]],tblXrate[],2,FALSE) -> 30000 | H42: Academic Advisor | I42: Consultant | J42: USA | K42: =VLOOKUP(tblSalaries[[#This Row],[Where do you work]],tblCountries[[Actual]:[Mapping]],2,FALSE) -> USA | L42: 3 | M42: >20 | N42: N. AMERICA | O42: =(G42/365)/L42 -> 27.39726027
B43: ID0040 | C43: 2012-05-25T05:13:50 | D43: Rs. 400000 | E43: 400000 | F43: INR | G43: =tblSalaries[[#This Row],[clean Salary (in local currency)]]*VLOOKUP(tblSalaries[[#This Row],[Currency]],tblXrate[],2,FALSE) -> 7123.166675 | H43: Coordination | I43: Manager | J43: India | K43: =VLOOKUP(tblSalaries[[#This Row],[Where do you work]],tblCountries[[Actual]:[Mapping]],2,FALSE) -> India | L43: 6 | M43: >20 | N43: ASIA | O43: =(G43/365)/L43 -> 3.252587523
B44: ID0041 | C44: 2012-05-25T05:18:48 | D44: 70000 | E44: 70000 | F44: AUD | G44: =tblSalaries[[#This Row],[clean Salary (in local currency)]]*VLOOKUP(tblSalaries[[#This Row],[Currency]],tblXrate[],2,FALSE) -> 71393.67595 | H44: consultant | I44: Consultant | J44: Australia | K44: =VLOOKUP(tblSalaries[[#This Row],[Where do you work]],tblCountries[[Actual]:[Mapping]],2,FALSE) -> Australia | L44: 3 | M44: >10<=20 | N44: OCEANIA | O44: =(G44/365)/L44 -> 65.19970406
B45: ID0042 | C45: 2012-05-25T05:20:10 | D45: 14500 | E45: 14500 | F45: USD | G45: =tblSalaries[[#This Row],[clean Salary (in local currency)]]*VLOOKUP(tblSalaries[[#This Row],[Currency]],tblXrate[],2,FALSE) -> 14500 | H45: Business Analsyt | I45: Analyst | J45: India | K45: =VLOOKUP(tblSalaries[[#This Row],[Where do you work]],tblCountries[[Actual]:[Mapping]],2,FALSE) -> India | L45: 6 | M45: >10<=20 | N45: ASIA | O45: =(G45/365)/L45 -> 6.621004566
B46: ID0043 | C46: 2012-05-25T05:30:39 | D46: 70000 | E46: 70000 | F46: CAD | G46: =tblSalaries[[#This Row],[clean Salary (in local currency)]]*VLOOKUP(tblSalaries[[#This Row],[Currency]],tblXrate[],2,FALSE) -> 68835.30661 | H46: Product Engineer | I46: Engineer | J46: Canada | K46: =VLOOKUP(tblSalaries[[#This Row],[Where do you work]],tblCountries[[Actual]:[Mapping]],2,FALSE) -> Canada | L46: 3 | M46: >20 | N46: N. AMERICA | O46: =(G46/365)/L46 -> 62.86329371
B47: ID0044 | C47: 2012-05-25T05:35:28 | D47: 58000 | E47: 58000 | F47: USD | G47: =tblSalaries[[#This Row],[clean Salary (in local currency)]]*VLOOKUP(tblSalaries[[#This Row],[Currency]],tblXrate[],2,FALSE) -> 58000 | H47: Senior Accountant | I47: Accountant | J47: USA | K47: =VLOOKUP(tblSalaries[[#This Row],[Where do you work]],tblCountries[[Actual]:[Mapping]],2,FALSE) -> USA | L47: 6 | M47: >10<=20 | N47: N. AMERICA | O47: =(G47/365)/L47 -> 26.48401826
B48: ID0045 | C48: 2012-05-25T05:45:01 | D48: 90000 | E48: 90000 | F48: USD | G48: =tblSalaries[[#This Row],[clean Salary (in local currency)]]*VLOOKUP(tblSalaries[[#This Row],[Currency]],tblXrate[],2,FALSE) -> 90000 | H48: Scientist | I48: Misc. | J48: USA | K48: =VLOOKUP(tblSalaries[[#This Row],[Where do you work]],tblCountries[[Actual]:[Mapping]],2,FALSE) -> USA | L48: 2 | M48: >10<=20 | N48: N. AMERICA | O48: =(G48/365)/L48 -> 123.2876712
B49: ID0046 | C49: 2012-05-25T05:46:47 | D49: 800000 | E49: 800000 | F49: INR | G49: =tblSalaries[[#This Row],[clean Salary (in local currency)]]*VLOOKUP(tblSalaries[[#This Row],[Currency]],tblXrate[],2,FALSE) -> 14246.33335 | H49: Team Lead | I49: Manager | J49: India | K49: =VLOOKUP(tblSalaries[[#This Row],[Where do you work]],tblCountries[[Actual]:[Mapping]],2,FALSE) -> India | L49: 3 | M49: >20 | N49: ASIA | O49: =(G49/365)/L49 -> 13.01035009
B50: ID0047 | C50: 2012-05-25T05:47:10 | D50: 32000 | E50: 32000 | F50: GBP | G50: =tblSalaries[[#This Row],[clean Salary (in local currency)]]*VLOOKUP(tblSalaries[[#This Row],[Currency]],tblXrate[],2,FALSE) -> 50437.70471 | H50: Senior intelligence analyst | I50: Analyst | J50: UK | K50: =VLOOKUP(tblSalaries[[#This Row],[Where do you work]],tblCountries[[Actual]:[Mapping]],2,FALSE) -> UK | L50: 6 | M50: >20 | N50: EUROPE | O50: =(G50/365)/L50 -> 23.03091539
B51: ID0048 | C51: 2012-05-25T05:47:52 | D51: 1000 | E51: 12000 | F51: USD | G51: =tblSalaries[[#This Row],[clean Salary (in local currency)]]*VLOOKUP(tblSalaries[[#This Row],[Currency]],tblXrate[],2,FALSE) -> 12000 | H51: Freelance consultant | I51: Consultant | J51: USA | K51: =VLOOKUP(tblSalaries[[#This Row],[Where do you work]],tblCountries[[Actual]:[Mapping]],2,FALSE) -> USA | L51: 2 | M51: >20 | N51: N. AMERICA | O51: =(G51/365)/L51 -> 16.43835616
B52: ID0049 | C52: 2012-05-25T06:04:42 | D52: â‚¬ 45 | E52: 45000 | F52: EUR | G52: =tblSalaries[[#This Row],[clean Salary (in local currency)]]*VLOOKUP(tblSalaries[[#This Row],[Currency]],tblXrate[],2,FALSE) -> 57167.97475 | H52: Online Traffic Manager / Web Analist | I52: Manager | J52: The Netherlands | K52: =VLOOKUP(tblSalaries[[#This Row],[Where do you work]],tblCountries[[Actual]:[Mapping]],2,FALSE) -> Netherlands | L52: 6 | M52: >5<=10 | N52: EUROPE | O52: =(G52/365)/L52 -> 26.10409806
B53: ID0050 | C53: 2012-05-25T06:04:57 | D53: 100000 USD | E53: 100000 | F53: USD | G53: =tblSalaries[[#This Row],[clean Salary (in local currency)]]*VLOOKUP(tblSalaries[[#This Row],[Currency]],tblXrate[],2,FALSE) -> 100000 | H53: Seinor Financial Analyst | I53: Analyst | J53: Germany | K53: =VLOOKUP(tblSalaries[[#This Row],[Where do you work]],tblCountries[[Actual]:[Mapping]],2,FALSE) -> Germany | L53: 8 | M53: >20 | N53: EUROPE | O53: =(G53/365)/L53 -> 34.24657534
B54: ID0051 | C54: 2012-05-25T06:05:17 | D54: 57000 | E54: 57000 | F54: USD | G54: =tblSalaries[[#This Row],[clean Salary (in local currency)]]*VLOOKUP(tblSalaries[[#This Row],[Currency]],tblXrate[],2,FALSE) -> 57000 | H54: Senior Accounting Supervisor | I54: Accountant | J54: USA | K54: =VLOOKUP(tblSalaries[[#This Row],[Where do you work]],tblCountries[[Actual]:[Mapping]],2,FALSE) -> USA | L54: 3 | M54: >20 | N54: N. AMERICA | O54: =(G54/365)/L54 -> 52.05479452
B55: ID0052 | C55: 2012-05-25T06:07:15 | D55: 40000 | E55: 40000 | F55: GBP | G55: =tblSalaries[[#This Row],[clean Salary (in local currency)]]*VLOOKUP(tblSalaries[[#This Row],[Currency]],tblXrate[],2,FALSE) -> 63047.13088 | H55: Senior Accountant | I55: Accountant | J55: UK | K55: =VLOOKUP(tblSalaries[[#This Row],[Where do you work]],tblCountries[[Actual]:[Mapping]],2,FALSE) -> UK | L55: 6 | M55: >20 | N55: EUROPE | O55: =(G55/365)/L55 -> 28.78864424
B56: ID0053 | C56: 2012-05-25T06:09:44 | D56: 2000 Euros | E56: 24000 | F56: EUR | G56: =tblSalaries[[#This Row],[clean Salary (in local currency)]]*VLOOKUP(tblSalaries[[#This Row],[Currency]],tblXrate[],2,FALSE) -> 30489.58654 | H56: PPC Manager | I56: Manager | J56: Germany | K56: =VLOOKUP(tblSalaries[[#This Row],[Where do you work]],tblCountries[[Actual]:[Mapping]],2,FALSE) -> Germany | L56: 8 | M56: >20 | N56: EUROPE | O56: =(G56/365)/L56 -> 10.44163922
B57: ID0054 | C57: 2012-05-25T06:10:18 | D57: 4320 | E57: 4320 | F57: USD | G57: =tblSalaries[[#This Row],[clean Salary (in local currency)]]*VLOOKUP(tblSalaries[[#This Row],[Currency]],tblXrate[],2,FALSE) -> 4320 | H57: Financial Planner | I57: Accountant | J57: India | K57: =VLOOKUP(tblSalaries[[#This Row],[Where do you work]],tblCountries[[Actual]:[Mapping]],2,FALSE) -> India | L57: 3 | M57: >5<=10 | N57: ASIA | O57: =(G57/365)/L57 -> 3.945205479
B58: ID0055 | C58: 2012-05-25T06:15:42 | D58: 62000 | E58: 62000 | F58: USD | G58: =tblSalaries[[#This Row],[clean Salary (in local currency)]]*VLOOKUP(tblSalaries[[#This Row],[Currency]],tblXrate[],2,FALSE) -> 62000 | H58: Analyst | I58: Analyst | J58: USA | K58: =VLOOKUP(tblSalaries[[#This Row],[Where do you work]],tblCountries[[Actual]:[Mapping]],2,FALSE) -> USA | L58: 6 | M58: >20 | N58: N. AMERICA | O58: =(G58/365)/L58 -> 28.31050228
B59: ID0056 | C59: 2012-05-25T06:26:44 | D59: 7500 | E59: 7500 | F59: USD | G59: =tblSalaries[[#This Row],[clean Salary (in local currency)]]*VLOOKUP(tblSalaries[[#This Row],[Currency]],tblXrate[],2,FALSE) -> 7500 | H59: Analyst | I59: Analyst | J59: India | K59: =VLOOKUP(tblSalaries[[#This Row],[Where do you work]],tblCountries[[Actual]:[Mapping]],2,FALSE) -> India | L59: 6 | M59: <=5 | N59: ASIA | O59: =(G59/365)/L59 -> 3.424657534
B60: ID0057 | C60: 2012-05-25T06:27:29 | D60: Â£18000 | E60: 18000 | F60: GBP | G60: =tblSalaries[[#This Row],[clean Salary (in local currency)]]*VLOOKUP(tblSalaries[[#This Row],[Currency]],tblXrate[],2,FALSE) -> 28371.2089 | H60: Building Design and Performance Researcher | I60: Manager | J60: UK | K60: =VLOOKUP(tblSalaries[[#This Row],[Where do you work]],tblCountries[[Actual]:[Mapping]],2,FALSE) -> UK | L60: 2 | M60: <=5 | N60: EUROPE | O60: =(G60/365)/L60 -> 38.86466972
B61: ID0058 | C61: 2012-05-25T06:49:25 | D61: 49000 | E61: 49000 | F61: EUR | G61: =tblSalaries[[#This Row],[clean Salary (in local currency)]]*VLOOKUP(tblSalaries[[#This Row],[Currency]],tblXrate[],2,FALSE) -> 62249.57251 | H61: Project leader | I61: Manager | J61: France | K61: =VLOOKUP(tblSalaries[[#This Row],[Where do you work]],tblCountries[[Actual]:[Mapping]],2,FALSE) -> France | L61: 3 | M61: >20 | N61: EUROPE | O61: =(G61/365)/L61 -> 56.84892467
B62: ID0059 | C62: 2012-05-25T06:57:52 | D62: 38000 | E62: 38000 | F62: USD | G62: =tblSalaries[[#This Row],[clean Salary (in local currency)]]*VLOOKUP(tblSalaries[[#This Row],[Currency]],tblXrate[],2,FALSE) -> 38000 | H62: Senior Analyst | I62: Analyst | J62: USA | K62: =VLOOKUP(tblSalaries[[#This Row],[Where do you work]],tblCountries[[Actual]:[Mapping]],2,FALSE) -> USA | L62: 6 | M62: >10<=20 | N62: N. AMERICA | O62: =(G62/365)/L62 -> 17.35159817
B63: ID0060 | C63: 2012-05-25T07:00:52 | D63: 41000 | E63: 41000 | F63: USD | G63: =tblSalaries[[#This Row],[clean Salary (in local currency)]]*VLOOKUP(tblSalaries[[#This Row],[Currency]],tblXrate[],2,FALSE) -> 41000 | H63: Specialist | I63: Specialist | J63: USA | K63: =VLOOKUP(tblSalaries[[#This Row],[Where do you work]],tblCountries[[Actual]:[Mapping]],2,FALSE) -> USA | L63: 6 | M63: >10<=20 | N63: N. AMERICA | O63: =(G63/365)/L63 -> 18.72146119
B64: ID0061 | C64: 2012-05-25T07:11:09 | D64: 68000 | E64: 68000 | F64: USD | G64: =tblSalaries[[#This Row],[clean Salary (in local currency)]]*VLOOKUP(tblSalaries[[#This Row],[Currency]],tblXrate[],2,FALSE) -> 68000 | H64: Engineering Data Analyst | I64: Analyst | J64: USA | K64: =VLOOKUP(tblSalaries[[#This Row],[Where do you work]],tblCountries[[Actual]:[Mapping]],2,FALSE) -> USA | L64: 8 | M64: >20 | N64: N. AMERICA | O64: =(G64/365)/L64 -> 23.28767123
B65: ID0062 | C65: 2012-05-25T07:13:31 | D65: 56000 | E65: 56000 | F65: CAD | G65: =tblSalaries[[#This Row],[clean Salary (in local currency)]]*VLOOKUP(tblSalaries[[#This Row],[Currency]],tblXrate[],2,FALSE) -> 55068.24529 | H65: Sales Analyst | I65: Analyst | J65: CANADA | K65: =VLOOKUP(tblSalaries[[#This Row],[Where do you work]],tblCountries[[Actual]:[Mapping]],2,FALSE) -> Canada | L65: 8 | M65: <=5 | N65: N. AMERICA | O65: =(G65/365)/L65 -> 18.85898811
B66: ID0063 | C66: 2012-05-25T07:15:12 | D66: 61000 | E66: 61000 | F66: USD | G66: =tblSalaries[[#This Row],[clean Salary (in local currency)]]*VLOOKUP(tblSalaries[[#This Row],[Currency]],tblXrate[],2,FALSE) -> 61000 | H66: Coordinator Of Costa and Buget | I66: Manager | J66: Brasil | K66: =VLOOKUP(tblSalaries[[#This Row],[Where do you work]],tblCountries[[Actual]:[Mapping]],2,FALSE) -> Brazil | L66: 8 | M66: >20 | N66: S. AMERICA | O66: =(G66/365)/L66 -> 20.89041096
B67: ID0064 | C67: 2012-05-25T07:18:53 | D67: 43000 | E67: 43000 | F67: EUR | G67: =tblSalaries[[#This Row],[clean Salary (in local currency)]]*VLOOKUP(tblSalaries[[#This Row],[Currency]],tblXrate[],2,FALSE) -> 54627.17588 | H67: SAP consultant | I67: Consultant | J67: FR | K67: =VLOOKUP(tblSalaries[[#This Row],[Where do you work]],tblCountries[[Actual]:[Mapping]],2,FALSE) -> France | L67: 6 | M67: >20 | N67: EUROPE | O67: =(G67/365)/L67 -> 24.94391593
B68: ID0065 | C68: 2012-05-25T07:20:08 | D68: 85000 | E68: 85000 | F68: USD | G68: =tblSalaries[[#This Row],[clean Salary (in local currency)]]*VLOOKUP(tblSalaries[[#This Row],[Currency]],tblXrate[],2,FALSE) -> 85000 | H68: Manager | I68: Manager | J68: USA | K68: =VLOOKUP(tblSalaries[[#This Row],[Where do you work]],tblCountries[[Actual]:[Mapping]],2,FALSE) -> USA | L68: 6 | M68: >10<=20 | N68: N. AMERICA | O68: =(G68/365)/L68 -> 38.81278539
B69: ID0066 | C69: 2012-05-25T07:21:18 | D69: â‚¬ 38000 | E69: 38000 | F69: EUR | G69: =tblSalaries[[#This Row],[clean Salary (in local currency)]]*VLOOKUP(tblSalaries[[#This Row],[Currency]],tblXrate[],2,FALSE) -> 48275.17868 | H69: busines analist | I69: Analyst | J69: The Netherlands | K69: =VLOOKUP(tblSalaries[[#This Row],[Where do you work]],tblCountries[[Actual]:[Mapping]],2,FALSE) -> Netherlands | L69: 2 | M69: <=5 | N69: EUROPE | O69: =(G69/365)/L69 -> 66.13038176
B70: ID0067 | C70: 2012-05-25T07:25:12 | D70: 85000 | E70: 85000 | F70: AUD | G70: =tblSalaries[[#This Row],[clean Salary (in local currency)]]*VLOOKUP(tblSalaries[[#This Row],[Currency]],tblXrate[],2,FALSE) -> 86692.32079 | H70: head of data | I70: CXO or Top Mgmt. | J70: Australia | K70: =VLOOKUP(tblSalaries[[#This Row],[Where do you work]],tblCountries[[Actual]:[Mapping]],2,FALSE) -> Australia | L70: 6 | M70: >20 | N70: OCEANIA | O70: =(G70/365)/L70 -> 39.58553461
B71: ID0068 | C71: 2012-05-25T07:29:12 | D71: 85087 | E71: 85087 | F71: USD | G71: =tblSalaries[[#This Row],[clean Salary (in local currency)]]*VLOOKUP(tblSalaries[[#This Row],[Currency]],tblXrate[],2,FALSE) -> 85087 | H71: Business Systems Analyst | I71: Analyst | J71: USA | K71: =VLOOKUP(tblSalaries[[#This Row],[Where do you work]],tblCountries[[Actual]:[Mapping]],2,FALSE) -> USA | L71: 3 | M71: >20 | N71: N. AMERICA | O71: =(G71/365)/L71 -> 77.70502283
B72: ID0069 | C72: 2012-05-25T07:38:22 | D72: 50000 | E72: 50000 | F72: USD | G72: =tblSalaries[[#This Row],[clean Salary (in local currency)]]*VLOOKUP(tblSalaries[[#This Row],[Currency]],tblXrate[],2,FALSE) -> 50000 | H72: Financial Analyst II | I72: Analyst | J72: USA | K72: =VLOOKUP(tblSalaries[[#This Row],[Where do you work]],tblCountries[[Actual]:[Mapping]],2,FALSE) -> USA | L72: 8 | M72: >20 | N72: N. AMERICA | O72: =(G72/365)/L72 -> 17.12328767
B73: ID0070 | C73: 2012-05-25T07:47:00 | D73: 100000 | E73: 100000 | F73: USD | G73: =tblSalaries[[#This Row],[clean Salary (in local currency)]]*VLOOKUP(tblSalaries[[#This Row],[Currency]],tblXrate[],2,FALSE) -> 100000 | H73: Mngr MI | I73: Manager | J73: RSA | K73: =VLOOKUP(tblSalaries[[#This Row],[Where do you work]],tblCountries[[Actual]:[Mapping]],2,FALSE) -> South Africa | L73: 6 | M73: >10<=20 | N73: AFRICA | O73: =(G73/365)/L73 -> 45.66210046
B74: ID0071 | C74: 2012-05-25T22:49:00 | D74: 57000 | E74: 57000 | F74: USD | G74: =tblSalaries[[#This Row],[clean Salary (in local currency)]]*VLOOKUP(tblSalaries[[#This Row],[Currency]],tblXrate[],2,FALSE) -> 57000 | H74: sales analyst | I74: Analyst | J74: USA | K74: =VLOOKUP(tblSalaries[[#This Row],[Where do you work]],tblCountries[[Actual]:[Mapping]],2,FALSE) -> USA | L74: 6 | M74: >20 | N74: N. AMERICA | O74: =(G74/365)/L74 -> 26.02739726
B75: ID0072 | C75: 2012-05-25T22:52:28 | D75: 75000 | E75: 75000 | F75: USD | G75: =tblSalaries[[#This Row],[clean Salary (in local currency)]]*VLOOKUP(tblSalaries[[#This Row],[Currency]],tblXrate[],2,FALSE) -> 75000 | H75: Consumer Research Program Manager | I75: Manager | J75: USA | K75: =VLOOKUP(tblSalaries[[#This Row],[Where do you work]],tblCountries[[Actual]:[Mapping]],2,FALSE) -> USA | L75: 8 | M75: >5<=10 | N75: N. AMERICA | O75: =(G75/365)/L75 -> 25.68493151
B76: ID0073 | C76: 2012-05-25T22:59:05 | D76: $AUD100000 | E76: 100000 | F76: AUD | G76: =tblSalaries[[#This Row],[clean Salary (in local currency)]]*VLOOKUP(tblSalaries[[#This Row],[Currency]],tblXrate[],2,FALSE) -> 101990.9656 | H76: technical trainer | I76: Manager | J76: Australia | K76: =VLOOKUP(tblSalaries[[#This Row],[Where do you work]],tblCountries[[Actual]:[Mapping]],2,FALSE) -> Australia | L76: 6 | M76: >20 | N76: OCEANIA | O76: =(G76/365)/L76 -> 46.57121719
B77: ID0074 | C77: 2012-05-25T23:01:20 | D77: 2785 | E77: 33420 | F77: USD | G77: =tblSalaries[[#This Row],[clean Salary (in local currency)]]*VLOOKUP(tblSalaries[[#This Row],[Currency]],tblXrate[],2,FALSE) -> 33420 | H77: Process Flow Coordinator | I77: Manager | J77: United Arab Emirates | K77: =VLOOKUP(tblSalaries[[#This Row],[Where do you work]],tblCountries[[Actual]:[Mapping]],2,FALSE) -> UAE | L77: 8 | M77: >20 | N77: ASIA | O77: =(G77/365)/L77 -> 11.44520548
B78: ID0075 | C78: 2012-05-25T23:03:00 | D78: 59450 | E78: 59450 | F78: CAD | G78: =tblSalaries[[#This Row],[clean Salary (in local currency)]]*VLOOKUP(tblSalaries[[#This Row],[Currency]],tblXrate[],2,FALSE) -> 58460.84254 | H78: Process Improvement Specialist | I78: Specialist | J78: Canada | K78: =VLOOKUP(tblSalaries[[#This Row],[Where do you work]],tblCountries[[Actual]:[Mapping]],2,FALSE) -> Canada | L78: 8 | M78: >20 | N78: N. AMERICA | O78: =(G78/365)/L78 -> 20.02083649
B79: ID0076 | C79: 2012-05-25T23:12:29 | D79: 15000 | E79: 15000 | F79: USD | G79: =tblSalaries[[#This Row],[clean Salary (in local currency)]]*VLOOKUP(tblSalaries[[#This Row],[Currency]],tblXrate[],2,FALSE) -> 15000 | H79: Excel Programmer Consultant | I79: Consultant | J79: USA | K79: =VLOOKUP(tblSalaries[[#This Row],[Where do you work]],tblCountries[[Actual]:[Mapping]],2,FALSE) -> USA | L79: 8 | M79: >10<=20 | N79: N. AMERICA | O79: =(G79/365)/L79 -> 5.136986301
B80: ID0077 | C80: 2012-05-25T23:15:34 | D80: US $60,000 | E80: 60000 | F80: USD | G80: =tblSalaries[[#This Row],[clean Salary (in local currency)]]*VLOOKUP(tblSalaries[[#This Row],[Currency]],tblXrate[],2,FALSE) -> 60000 | H80: Statistical Analyst | I80: Analyst | J80: Canada | K80: =VLOOKUP(tblSalaries[[#This Row],[Where do you work]],tblCountries[[Actual]:[Mapping]],2,FALSE) -> Canada | L80: 2 | M80: <=5 | N80: N. AMERICA | O80: =(G80/365)/L80 -> 82.19178082
B81: ID0078 | C81: 2012-05-25T23:18:45 | D81: 100000 | E81: 100000 | F81: GBP | G81: =tblSalaries[[#This Row],[clean Salary (in local currency)]]*VLOOKUP(tblSalaries[[#This Row],[Currency]],tblXrate[],2,FALSE) -> 157617.8272 | H81: Analyst | I81: Analyst | J81: UK | K81: =VLOOKUP(tblSalaries[[#This Row],[Where do you work]],tblCountries[[Actual]:[Mapping]],2,FALSE) -> UK | L81: 3 | M81: >20 | N81: EUROPE | O81: =(G81/365)/L81 -> 143.9432212
B82: ID0079 | C82: 2012-05-25T23:20:46 | D82: Us$ 18000 | E82: 18000 | F82: USD | G82: =tblSalaries[[#This Row],[clean Salary (in local currency)]]*VLOOKUP(tblSalaries[[#This Row],[Currency]],tblXrate[],2,FALSE) -> 18000 | H82: Operational Analyst | I82: Analyst | J82: Saudi Arabia | K82: =VLOOKUP(tblSalaries[[#This Row],[Where do you work]],tblCountries[[Actual]:[Mapping]],2,FALSE) -> Saudi Arabia | L82: 8 | M82: >10<=20 | N82: ASIA | O82: =(G82/365)/L82 -> 6.164383562
B83: ID0080 | C83: 2012-05-25T23:31:16 | D83: 50000 | E83: 50000 | F83: USD | G83: =tblSalaries[[#This Row],[clean Salary (in local currency)]]*VLOOKUP(tblSalaries[[#This Row],[Currency]],tblXrate[],2,FALSE) -> 50000 | H83: Exceler | I83: Manager | J83: USA | K83: =VLOOKUP(tblSalaries[[#This Row],[Where do you work]],tblCountries[[Actual]:[Mapping]],2,FALSE) -> USA | L83: 3 | M83: >20 | N83: N. AMERICA | O83: =(G83/365)/L83 -> 45.66210046
B84: ID0081 | C84: 2012-05-25T23:33:15 | D84: 26000 | E84: 26000 | F84: USD | G84: =tblSalaries[[#This Row],[clean Salary (in local currency)]]*VLOOKUP(tblSalaries[[#This Row],[Currency]],tblXrate[],2,FALSE) -> 26000 | H84: Marketing Analyst | I84: Analyst | J84: Panama | K84: =VLOOKUP(tblSalaries[[#This Row],[Where do you work]],tblCountries[[Actual]:[Mapping]],2,FALSE) -> Panama | L84: 8 | M84: >20 | N84: N. AMERICA | O84: =(G84/365)/L84 -> 8.904109589
B85: ID0082 | C85: 2012-05-25T23:49:27 | D85: Â£30000 | E85: 30000 | F85: GBP | G85: =tblSalaries[[#This Row],[clean Salary (in local currency)]]*VLOOKUP(tblSalaries[[#This Row],[Currency]],tblXrate[],2,FALSE) -> 47285.34816 | H85: Database Manager | I85: Manager | J85: UK | K85: =VLOOKUP(tblSalaries[[#This Row],[Where do you work]],tblCountries[[Actual]:[Mapping]],2,FALSE) -> UK | L85: 6 | M85: >20 | N85: EUROPE | O85: =(G85/365)/L85 -> 21.59148318
B86: ID0083 | C86: 2012-05-26T00:00:52 | D86: 150000 | E86: 150000 | F86: USD | G86: =tblSalaries[[#This Row],[clean Salary (in local currency)]]*VLOOKUP(tblSalaries[[#This Row],[Currency]],tblXrate[],2,FALSE) -> 150000 | H86: Director | I86: CXO or Top Mgmt. | J86: USA | K86: =VLOOKUP(tblSalaries[[#This Row],[Where do you work]],tblCountries[[Actual]:[Mapping]],2,FALSE) -> USA | L86: 8 | M86: <=5 | N86: N. AMERICA | O86: =(G86/365)/L86 -> 51.36986301
B87: ID0084 | C87: 2012-05-26T00:05:45 | D87: 120000 | E87: 120000 | F87: USD | G87: =tblSalaries[[#This Row],[clean Salary (in local currency)]]*VLOOKUP(tblSalaries[[#This Row],[Currency]],tblXrate[],2,FALSE) -> 120000 | H87: Manager, Forecasts & Budgets | I87: Manager | J87: USA | K87: =VLOOKUP(tblSalaries[[#This Row],[Where do you work]],tblCountries[[Actual]:[Mapping]],2,FALSE) -> USA | L87: 6 | M87: >20 | N87: N. AMERICA | O87: =(G87/365)/L87 -> 54.79452055
B88: ID0085 | C88: 2012-05-26T00:10:17 | D88: 500000 | E88: 500000 | F88: INR | G88: =tblSalaries[[#This Row],[clean Salary (in local currency)]]*VLOOKUP(tblSalaries[[#This Row],[Currency]],tblXrate[],2,FALSE) -> 8903.958344 | H88: Senior Consultant | I88: Consultant | J88: India | K88: =VLOOKUP(tblSalaries[[#This Row],[Where do you work]],tblCountries[[Actual]:[Mapping]],2,FALSE) -> India | L88: 8 | M88: >20 | N88: ASIA | O88: =(G88/365)/L88 -> 3.049300803
B89: ID0086 | C89: 2012-05-26T00:11:21 | D89: US $ 31330.00 | E89: 31330 | F89: USD | G89: =tblSalaries[[#This Row],[clean Salary (in local currency)]]*VLOOKUP(tblSalaries[[#This Row],[Currency]],tblXrate[],2,FALSE) -> 31330 | H89: VBA Analyst | I89: Analyst | J89: Brazil | K89: =VLOOKUP(tblSalaries[[#This Row],[Where do you work]],tblCountries[[Actual]:[Mapping]],2,FALSE) -> Brazil | L89: 8 | M89: >20 | N89: S. AMERICA | O89: =(G89/365)/L89 -> 10.72945205
B90: ID0087 | C90: 2012-05-26T00:15:17 | D90: 110000 | E90: 110000 | F90: USD | G90: =tblSalaries[[#This Row],[clean Salary (in local currency)]]*VLOOKUP(tblSalaries[[#This Row],[Currency]],tblXrate[],2,FALSE) -> 110000 | H90: Senior Scheduling Engineer | I90: Engineer | J90: USA | K90: =VLOOKUP(tblSalaries[[#This Row],[Where do you work]],tblCountries[[Actual]:[Mapping]],2,FALSE) -> USA | L90: 3 | M90: <=5 | N90: N. AMERICA | O90: =(G90/365)/L90 -> 100.456621
B91: ID0088 | C91: 2012-05-26T00:22:49 | D91: 81,000USD | E91: 81000 | F91: USD | G91: =tblSalaries[[#This Row],[clean Salary (in local currency)]]*VLOOKUP(tblSalaries[[#This Row],[Currency]],tblXrate[],2,FALSE) -> 81000 | H91: Strategy Consultant | I91: Consultant | J91: UK | K91: =VLOOKUP(tblSalaries[[#This Row],[Where do you work]],tblCountries[[Actual]:[Mapping]],2,FALSE) -> UK | L91: 6 | M91: >10<=20 | N91: EUROPE | O91: =(G91/365)/L91 -> 36.98630137
B92: ID0089 | C92: 2012-05-26T00:39:04 | D92: 40000 | E92: 40000 | F92: USD | G92: =tblSalaries[[#This Row],[clean Salary (in local currency)]]*VLOOKUP(tblSalaries[[#This Row],[Currency]],tblXrate[],2,FALSE) -> 40000 | H92: Admin | I92: Analyst | J92: USA | K92: =VLOOKUP(tblSalaries[[#This Row],[Where do you work]],tblCountries[[Actual]:[Mapping]],2,FALSE) -> USA | L92: 6 | M92: >10<=20 | N92: N. AMERICA | O92: =(G92/365)/L92 -> 18.26484018
B93: ID0090 | C93: 2012-05-26T00:39:28 | D93: 42000 | E93: 42000 | F93: CAD | G93: =tblSalaries[[#This Row],[clean Salary (in local currency)]]*VLOOKUP(tblSalaries[[#This Row],[Currency]],tblXrate[],2,FALSE) -> 41301.18397 | H93: IT Asset Administrator | I93: Analyst | J93: Canada | K93: =VLOOKUP(tblSalaries[[#This Row],[Where do you work]],tblCountries[[Actual]:[Mapping]],2,FALSE) -> Canada | L93: 6 | M93: >20 | N93: N. AMERICA | O93: =(G93/365)/L93 -> 18.85898811
B94: ID0091 | C94: 2012-05-26T00:39:36 | D94: 125000 | E94: 125000 | F94: USD | G94: =tblSalaries[[#This Row],[clean Salary (in local currency)]]*VLOOKUP(tblSalaries[[#This Row],[Currency]],tblXrate[],2,FALSE) -> 125000 | H94: Director of Marketing | I94: CXO or Top Mgmt. | J94: USA | K94: =VLOOKUP(tblSalaries[[#This Row],[Where do you work]],tblCountries[[Actual]:[Mapping]],2,FALSE) -> USA | L94: 6 | M94: >20 | N94: N. AMERICA | O94: =(G94/365)/L94 -> 57.07762557
B95: ID0092 | C95: 2012-05-26T00:39:38 | D95: 36000 | E95: 36000 | F95: USD | G95: =tblSalaries[[#This Row],[clean Salary (in local currency)]]*VLOOKUP(tblSalaries[[#This Row],[Currency]],tblXrate[],2,FALSE) -> 36000 | H95: Graphic Design Manager | I95: Manager | J95: USA | K95: =VLOOKUP(tblSalaries[[#This Row],[Where do you work]],tblCountries[[Actual]:[Mapping]],2,FALSE) -> USA | L95: 3 | M95: >20 | N95: N. AMERICA | O95: =(G95/365)/L95 -> 32.87671233
B96: ID0093 | C96: 2012-05-26T00:39:54 | D96: Rs. 12,000/- | E96: 144000 | F96: INR | G96: =tblSalaries[[#This Row],[clean Salary (in local currency)]]*VLOOKUP(tblSalaries[[#This Row],[Currency]],tblXrate[],2,FALSE) -> 2564.340003 | H96: Financial Consultant | I96: Consultant | J96: India | K96: =VLOOKUP(tblSalaries[[#This Row],[Where do you work]],tblCountries[[Actual]:[Mapping]],2,FALSE) -> India | L96: 2 | M96: >10<=20 | N96: ASIA | O96: =(G96/365)/L96 -> 3.512794525
B97: ID0094 | C97: 2012-05-26T00:40:00 | D97: 75000 | E97: 75000 | F97: USD | G97: =tblSalaries[[#This Row],[clean Salary (in local currency)]]*VLOOKUP(tblSalaries[[#This Row],[Currency]],tblXrate[],2,FALSE) -> 75000 | H97: Data Analyst | I97: Analyst | J97: USA | K97: =VLOOKUP(tblSalaries[[#This Row],[Where do you work]],tblCountries[[Actual]:[Mapping]],2,FALSE) -> USA | L97: 2 | M97: >20 | N97: N. AMERICA | O97: =(G97/365)/L97 -> 102.739726
B98: ID0095 | C98: 2012-05-26T00:40:20 | D98: 95000 | E98: 95000 | F98: USD | G98: =tblSalaries[[#This Row],[clean Salary (in local currency)]]*VLOOKUP(tblSalaries[[#This Row],[Currency]],tblXrate[],2,FALSE) -> 95000 | H98: CFO | I98: CXO or Top Mgmt. | J98: USA | K98: =VLOOKUP(tblSalaries[[#This Row],[Where do you work]],tblCountries[[Actual]:[Mapping]],2,FALSE) -> USA | L98: 6 | M98: <=5 | N98: N. AMERICA | O98: =(G98/365)/L98 -> 43.37899543
B99: ID0096 | C99: 2012-05-26T00:40:27 | D99: 24000 | E99: 24000 | F99: USD | G99: =tblSalaries[[#This Row],[clean Salary (in local currency)]]*VLOOKUP(tblSalaries[[#This Row],[Currency]],tblXrate[],2,FALSE) -> 24000 | H99: Paraeducator | I99: Manager | J99: USA | K99: =VLOOKUP(tblSalaries[[#This Row],[Where do you work]],tblCountries[[Actual]:[Mapping]],2,FALSE) -> USA | L99: 3 | M99: >10<=20 | N99: N. AMERICA | O99: =(G99/365)/L99 -> 21.91780822
B100: ID0097 | C100: 2012-05-26T00:40:31 | D100: 91,000 USD | E100: 91000 | F100: USD | G100: =tblSalaries[[#This Row],[clean Salary (in local currency)]]*VLOOKUP(tblSalaries[[#This Row],[Currency]],tblXrate[],2,FALSE) -> 91000 | H100: Channel Marketing Manager | I100: Manager | J100: USA | K100: =VLOOKUP(tblSalaries[[#This Row],[Where do you work]],tblCountries[[Actual]:[Mapping]],2,FALSE) -> USA | L100: 2 | M100: <=5 | N100: N. AMERICA | O100: =(G100/365)/L100 -> 124.6575342
B101: ID0098 | C101: 2012-05-26T00:40:39 | D101: 40000 | E101: 40000 | F101: USD | G101: =tblSalaries[[#This Row],[clean Salary (in local currency)]]*VLOOKUP(tblSalaries[[#This Row],[Currency]],tblXrate[],2,FALSE) -> 40000 | H101: Sales and Marketing Analyst | I101: Analyst | J101: USA | K101: =VLOOKUP(tblSalaries[[#This Row],[Where do you work]],tblCountries[[Actual]:[Mapping]],2,FALSE) -> USA | L101: 6 | M101: >5<=10 | N101: N. AMERICA | O101: =(G101/365)/L101 -> 18.26484018
B102: ID0099 | C102: 2012-05-26T00:40:40 | D102: 57000 | E102: 57000 | F102: USD | G102: =tblSalaries[[#This Row],[clean Salary (in local currency)]]*VLOOKUP(tblSalaries[[#This Row],[Currency]],tblXrate[],2,FALSE) -> 57000 | H102: Production Scheduler | I102: Manager | J102: USA | K102: =VLOOKUP(tblSalaries[[#This Row],[Where do you work]],tblCountries[[Actual]:[Mapping]],2,FALSE) -> USA | L102: 6 | M102: >10<=20 | N102: N. AMERICA | O102: =(G102/365)/L102 -> 26.02739726
B103: ID0100 | C103: 2012-05-26T00:40:41 | D103: 74000 | E103: 74000 | F103: USD | G103: =tblSalaries[[#This Row],[clean Salary (in local currency)]]*VLOOKUP(tblSalaries[[#This Row],[Currency]],tblXrate[],2,FALSE) -> 74000 | H103: Senior Consultant | I103: Consultant | J103: USA | K103: =VLOOKUP(tblSalaries[[#This Row],[Where do you work]],tblCountries[[Actual]:[Mapping]],2,FALSE) -> USA | L103: 6 | M103: >20 | N103: N. AMERICA | O103: =(G103/365)/L103 -> 33.78995434
B104: ID0101 | C104: 2012-05-26T00:40:42 | D104: 80k | E104: 80000 | F104: USD | G104: =tblSalaries[[#This Row],[clean Salary (in local currency)]]*VLOOKUP(tblSalaries[[#This Row],[Currency]],tblXrate[],2,FALSE) -> 80000 | H104: financial analyst | I104: Analyst | J104: USA | K104: =VLOOKUP(tblSalaries[[#This Row],[Where do you work]],tblCountries[[Actual]:[Mapping]],2,FALSE) -> USA | L104: 6 | M104: >5<=10 | N104: N. AMERICA | O104: =(G104/365)/L104 -> 36.52968037
B105: ID0102 | C105: 2012-05-26T00:40:46 | D105: 90000 | E105: 90000 | F105: USD | G105: =tblSalaries[[#This Row],[clean Salary (in local currency)]]*VLOOKUP(tblSalaries[[#This Row],[Currency]],tblXrate[],2,FALSE) -> 90000 | H105: Product Specialist | I105: Specialist | J105: USA | K105: =VLOOKUP(tblSalaries[[#This Row],[Where do you work]],tblCountries[[Actual]:[Mapping]],2,FALSE) -> USA | L105: 6 | M105: >5<=10 | N105: N. AMERICA | O105: =(G105/365)/L105 -> 41.09589041
B106: ID0103 | C106: 2012-05-26T00:40:48 | D106: 21000 | E106: 21000 | F106: USD | G106: =tblSalaries[[#This Row],[clean Salary (in local currency)]]*VLOOKUP(tblSalaries[[#This Row],[Currency]],tblXrate[],2,FALSE) -> 21000 | H106: IT support | I106: Analyst | J106: uae | K106: =VLOOKUP(tblSalaries[[#This Row],[Where do you work]],tblCountries[[Actual]:[Mapping]],2,FALSE) -> UAE | L106: 2 | M106: >10<=20 | N106: ASIA | O106: =(G106/365)/L106 -> 28.76712329
B107: ID0104 | C107: 2012-05-26T00:40:50 | D107: 52000 | E107: 52000 | F107: USD | G107: =tblSalaries[[#This Row],[clean Salary (in local currency)]]*VLOOKUP(tblSalaries[[#This Row],[Currency]],tblXrate[],2,FALSE) -> 52000 | H107: sr. project coordinator | I107: Manager | J107: USA | K107: =VLOOKUP(tblSalaries[[#This Row],[Where do you work]],tblCountries[[Actual]:[Mapping]],2,FALSE) -> USA | L107: 6 | M107: >20 | N107: N. AMERICA | O107: =(G107/365)/L107 -> 23.74429224
B108: ID0105 | C108: 2012-05-26T00:40:52 | D108: 19200 | E108: 19200 | F108: USD | G108: =tblSalaries[[#This Row],[clean Salary (in local currency)]]*VLOOKUP(tblSalaries[[#This Row],[Currency]],tblXrate[],2,FALSE) -> 19200 | H108: Sr Administrative Assistant | I108: Analyst | J108: Mexico | K108: =VLOOKUP(tblSalaries[[#This Row],[Where do you work]],tblCountries[[Actual]:[Mapping]],2,FALSE) -> Mexico | L108: 6 | M108: >20 | N108: N. AMERICA | O108: =(G108/365)/L108 -> 8.767123288
B109: ID0106 | C109: 2012-05-26T00:40:57 | D109: 36000 | E109: 36000 | F109: USD | G109: =tblSalaries[[#This Row],[clean Salary (in local currency)]]*VLOOKUP(tblSalaries[[#This Row],[Currency]],tblXrate[],2,FALSE) -> 36000 | H109: Analyst | I109: Analyst | J109: USA | K109: =VLOOKUP(tblSalaries[[#This Row],[Where do you work]],tblCountries[[Actual]:[Mapping]],2,FALSE) -> USA | L109: 6 | M109: >5<=10 | N109: N. AMERICA | O109: =(G109/365)/L109 -> 16.43835616
B110: ID0107 | C110: 2012-05-26T00:41:02 | D110: 57400 | E110: 57400 | F110: USD | G110: =tblSalaries[[#This Row],[clean Salary (in local currency)]]*VLOOKUP(tblSalaries[[#This Row],[Currency]],tblXrate[],2,FALSE) -> 57400 | H110: IT Analyst | I110: Analyst | J110: USA | K110: =VLOOKUP(tblSalaries[[#This Row],[Where do you work]],tblCountries[[Actual]:[Mapping]],2,FALSE) -> USA | L110: 6 | M110: >20 | N110: N. AMERICA | O110: =(G110/365)/L110 -> 26.21004566
B111: ID0108 | C111: 2012-05-26T00:41:03 | D111: 66000 | E111: 66000 | F111: USD | G111: =tblSalaries[[#This Row],[clean Salary (in local currency)]]*VLOOKUP(tblSalaries[[#This Row],[Currency]],tblXrate[],2,FALSE) -> 66000 | H111: Analyst | I111: Analyst | J111: USA | K111: =VLOOKUP(tblSalaries[[#This Row],[Where do you work]],tblCountries[[Actual]:[Mapping]],2,FALSE) -> USA | L111: 3 | M111: >5<=10 | N111: N. AMERICA | O111: =(G111/365)/L111 -> 60.2739726
B112: ID0109 | C112: 2012-05-26T00:41:06 | D112: 35000 | E112: 35000 | F112: EUR | G112: =tblSalaries[[#This Row],[clean Salary (in local currency)]]*VLOOKUP(tblSalaries[[#This Row],[Currency]],tblXrate[],2,FALSE) -> 44463.98036 | H112: Project manager | I112: Manager | J112: Greece | K112: =VLOOKUP(tblSalaries[[#This Row],[Where do you work]],tblCountries[[Actual]:[Mapping]],2,FALSE) -> Greece | L112: 6 | M112: >20 | N112: EUROPE | O112: =(G112/365)/L112 -> 20.30318738
B113: ID0111 | C113: 2012-05-26T00:41:16 | D113: $85,000+ | E113: 85000 | F113: USD | G113: =tblSalaries[[#This Row],[clean Salary (in local currency)]]*VLOOKUP(tblSalaries[[#This Row],[Currency]],tblXrate[],2,FALSE) -> 85000 | H113: Strategic Analyst | I113: Analyst | J113: USA | K113: =VLOOKUP(tblSalaries[[#This Row],[Where do you work]],tblCountries[[Actual]:[Mapping]],2,FALSE) -> USA | L113: 6 | M113: <=5 | N113: N. AMERICA | O113: =(G113/365)/L113 -> 38.81278539
B114: ID0112 | C114: 2012-05-26T00:41:22 | D114: 50000 | E114: 50000 | F114: USD | G114: =tblSalaries[[#This Row],[clean Salary (in local currency)]]*VLOOKUP(tblSalaries[[#This Row],[Currency]],tblXrate[],2,FALSE) -> 50000 | H114: Transportation Specialist | I114: Specialist | J114: USA | K114: =VLOOKUP(tblSalaries[[#This Row],[Where do you work]],tblCountries[[Actual]:[Mapping]],2,FALSE) -> USA | L114: 6 | M114: >20 | N114: N. AMERICA | O114: =(G114/365)/L114 -> 22.83105023
B115: ID0113 | C115: 2012-05-26T00:41:27 | D115: $58,000 USD | E115: 58000 | F115: USD | G115: =tblSalaries[[#This Row],[clean Salary (in local currency)]]*VLOOKUP(tblSalaries[[#This Row],[Currency]],tblXrate[],2,FALSE) -> 58000 | H115: Operations Programs Support | I115: Manager | J115: USA | K115: =VLOOKUP(tblSalaries[[#This Row],[Where do you work]],tblCountries[[Actual]:[Mapping]],2,FALSE) -> USA | L115: 6 | M115: >20 | N115: N. AMERICA | O115: =(G115/365)/L115 -> 26.48401826
B116: ID0114 | C116: 2012-05-26T00:41:28 | D116: 37900 | E116: 37900 | F116: USD | G116: =tblSalaries[[#This Row],[clean Salary (in local currency)]]*VLOOKUP(tblSalaries[[#This Row],[Currency]],tblXrate[],2,FALSE) -> 37900 | H116: Accounting Coordinator | I116: Accountant | J116: USA | K116: =VLOOKUP(tblSalaries[[#This Row],[Where do you work]],tblCountries[[Actual]:[Mapping]],2,FALSE) -> USA | L116: 8 | M116: >20 | N116: N. AMERICA | O116: =(G116/365)/L116 -> 12.97945205
B117: ID0115 | C117: 2012-05-26T00:41:30 | D117: 4000 | E117: 48000 | F117: USD | G117: =tblSalaries[[#This Row],[clean Salary (in local currency)]]*VLOOKUP(tblSalaries[[#This Row],[Currency]],tblXrate[],2,FALSE) -> 48000 | H117: Asst.Manager Finance | I117: Manager | J117: UAE | K117: =VLOOKUP(tblSalaries[[#This Row],[Where do you work]],tblCountries[[Actual]:[Mapping]],2,FALSE) -> UAE | L117: 3 | M117: >20 | N117: ASIA | O117: =(G117/365)/L117 -> 43.83561644
B118: ID0116 | C118: 2012-05-26T00:41:32 | D118: 67000 | E118: 67000 | F118: USD | G118: =tblSalaries[[#This Row],[clean Salary (in local currency)]]*VLOOKUP(tblSalaries[[#This Row],[Currency]],tblXrate[],2,FALSE) -> 67000 | H118: Operations Cost Analyst | I118: Analyst | J118: USA | K118: =VLOOKUP(tblSalaries[[#This Row],[Where do you work]],tblCountries[[Actual]:[Mapping]],2,FALSE) -> USA | L118: 6 | M118: >20 | N118: N. AMERICA | O118: =(G118/365)/L118 -> 30.59360731
B119: ID0117 | C119: 2012-05-26T00:41:35 | D119: 85000 | E119: 85000 | F119: USD | G119: =tblSalaries[[#This Row],[clean Salary (in local currency)]]*VLOOKUP(tblSalaries[[#This Row],[Currency]],tblXrate[],2,FALSE) -> 85000 | H119: Financial Controller | I119: Controller | J119: UAE | K119: =VLOOKUP(tblSalaries[[#This Row],[Where do you work]],tblCountries[[Actual]:[Mapping]],2,FALSE) -> UAE | L119: 6 | M119: >5<=10 | N119: ASIA | O119: =(G119/365)/L119 -> 38.81278539
B120: ID0118 | C120: 2012-05-26T00:41:35 | D120: 56160 | E120: 56160 | F120: USD | G120: =tblSalaries[[#This Row],[clean Salary (in local currency)]]*VLOOKUP(tblSalaries[[#This Row],[Currency]],tblXrate[],2,FALSE) -> 56160 | H120: Utilization Analyst | I120: Analyst | J120: USA | K120: =VLOOKUP(tblSalaries[[#This Row],[Where do you work]],tblCountries[[Actual]:[Mapping]],2,FALSE) -> USA | L120: 6 | M120: >20 | N120: N. AMERICA | O120: =(G120/365)/L120 -> 25.64383562
B121: ID0119 | C121: 2012-05-26T00:41:38 | D121: 2000 | E121: 24000 | F121: USD | G121: =tblSalaries[[#This Row],[clean Salary (in local currency)]]*VLOOKUP(tblSalaries[[#This Row],[Currency]],tblXrate[],2,FALSE) -> 24000 | H121: Researcher | I121: Manager | J121: Colombia | K121: =VLOOKUP(tblSalaries[[#This Row],[Where do you work]],tblCountries[[Actual]:[Mapping]],2,FALSE) -> Colombia | L121: 8 | M121: <=5 | N121: S. AMERICA | O121: =(G121/365)/L121 -> 8.219178082
B122: ID0120 | C122: 2012-05-26T00:41:38 | D122: 52000 | E122: 52000 | F122: USD | G122: =tblSalaries[[#This Row],[clean Salary (in local currency)]]*VLOOKUP(tblSalaries[[#This Row],[Currency]],tblXrate[],2,FALSE) -> 52000 | H122: Market Analyst | I122: Analyst | J122: USA | K122: =VLOOKUP(tblSalaries[[#This Row],[Where do you work]],tblCountries[[Actual]:[Mapping]],2,FALSE) -> USA | L122: 8 | M122: >20 | N122: N. AMERICA | O122: =(G122/365)/L122 -> 17.80821918
B123: ID0121 | C123: 2012-05-26T00:41:41 | D123: 60000 | E123: 60000 | F123: CAD | G123: =tblSalaries[[#This Row],[clean Salary (in local currency)]]*VLOOKUP(tblSalaries[[#This Row],[Currency]],tblXrate[],2,FALSE) -> 59001.69138 | H123: Web Developer | I123: Analyst | J123: Canada | K123: =VLOOKUP(tblSalaries[[#This Row],[Where do you work]],tblCountries[[Actual]:[Mapping]],2,FALSE) -> Canada | L123: 8 | M123: >5<=10 | N123: N. AMERICA | O123: =(G123/365)/L123 -> 20.20605869
B124: ID0122 | C124: 2012-05-26T00:41:43 | D124: 70000 | E124: 70000 | F124: USD | G124: =tblSalaries[[#This Row],[clean Salary (in local currency)]]*VLOOKUP(tblSalaries[[#This Row],[Currency]],tblXrate[],2,FALSE) -> 70000 | H124: Sr. Acct | I124: Accountant | J124: USA | K124: =VLOOKUP(tblSalaries[[#This Row],[Where do you work]],tblCountries[[Actual]:[Mapping]],2,FALSE) -> USA | L124: 8 | M124: >10<=20 | N124: N. AMERICA | O124: =(G124/365)/L124 -> 23.97260274
B125: ID0123 | C125: 2012-05-26T00:41:56 | D125: 50000 | E125: 50000 | F125: USD | G125: =tblSalaries[[#This Row],[clean Salary (in local currency)]]*VLOOKUP(tblSalaries[[#This Row],[Currency]],tblXrate[],2,FALSE) -> 50000 | H125: Information Systems Specialist | I125: Specialist | J125: USA | K125: =VLOOKUP(tblSalaries[[#This Row],[Where do you work]],tblCountries[[Actual]:[Mapping]],2,FALSE) -> USA | L125: 6 | M125: <=5 | N125: N. AMERICA | O125: =(G125/365)/L125 -> 22.83105023
B126: ID0124 | C126: 2012-05-26T00:41:58 | D126: 2300000 | E126: 2300000 | F126: INR | G126: =tblSalaries[[#This Row],[clean Salary (in local currency)]]*VLOOKUP(tblSalaries[[#This Row],[Currency]],tblXrate[],2,FALSE) -> 40958.20838 | H126: Analytics lead | I126: Analyst | J126: India | K126: =VLOOKUP(tblSalaries[[#This Row],[Where do you work]],tblCountries[[Actual]:[Mapping]],2,FALSE) -> India | L126: 2 | M126: <=5 | N126: ASIA | O126: =(G126/365)/L126 -> 56.10713477
B127: ID0125 | C127: 2012-05-26T00:42:00 | D127: 80000 | E127: 80000 | F127: USD | G127: =tblSalaries[[#This Row],[clean Salary (in local currency)]]*VLOOKUP(tblSalaries[[#This Row],[Currency]],tblXrate[],2,FALSE) -> 80000 | H127: Financial Analyst | I127: Analyst | J127: USA | K127: =VLOOKUP(tblSalaries[[#This Row],[Where do you work]],tblCountries[[Actual]:[Mapping]],2,FALSE) -> USA | L127: 6 | M127: >20 | N127: N. AMERICA | O127: =(G127/365)/L127 -> 36.52968037
B128: ID0126 | C128: 2012-05-26T00:42:08 | D128: 128000 | E128: 128000 | F128: USD | G128: =tblSalaries[[#This Row],[clean Salary (in local currency)]]*VLOOKUP(tblSalaries[[#This Row],[Currency]],tblXrate[],2,FALSE) -> 128000 | H128: Actuary | I128: Manager | J128: USA | K128: =VLOOKUP(tblSalaries[[#This Row],[Where do you work]],tblCountries[[Actual]:[Mapping]],2,FALSE) -> USA | L128: 8 | M128: >20 | N128: N. AMERICA | O128: =(G128/365)/L128 -> 43.83561644
B129: ID0127 | C129: 2012-05-26T00:42:10 | D129: US $44,000 | E129: 44000 | F129: USD | G129: =tblSalaries[[#This Row],[clean Salary (in local currency)]]*VLOOKUP(tblSalaries[[#This Row],[Currency]],tblXrate[],2,FALSE) -> 44000 | H129: School Tech Coordinator | I129: Manager | J129: USA | K129: =VLOOKUP(tblSalaries[[#This Row],[Where do you work]],tblCountries[[Actual]:[Mapping]],2,FALSE) -> USA | L129: 2 | M129: >10<=20 | N129: N. AMERICA | O129: =(G129/365)/L129 -> 60.2739726
B130: ID0128 | C130: 2012-05-26T00:42:11 | D130: 65000 | E130: 65000 | F130: USD | G130: =tblSalaries[[#This Row],[clean Salary (in local currency)]]*VLOOKUP(tblSalaries[[#This Row],[Currency]],tblXrate[],2,FALSE) -> 65000 | H130: sr accountant | I130: Accountant | J130: USA | K130: =VLOOKUP(tblSalaries[[#This Row],[Where do you work]],tblCountries[[Actual]:[Mapping]],2,FALSE) -> USA | L130: 8 | M130: >5<=10 | N130: N. AMERICA | O130: =(G130/365)/L130 -> 22.26027397
B131: ID0129 | C131: 2012-05-26T00:42:32 | D131: 36000 usd | E131: 36000 | F131: USD | G131: =tblSalaries[[#This Row],[clean Salary (in local currency)]]*VLOOKUP(tblSalaries[[#This Row],[Currency]],tblXrate[],2,FALSE) -> 36000 | H131: senior accountant | I131: Accountant | J131: Turkey | K131: =VLOOKUP(tblSalaries[[#This Row],[Where do you work]],tblCountries[[Actual]:[Mapping]],2,FALSE) -> Turkey | L131: 6 | M131: >20 | N131: ASIA | O131: =(G131/365)/L131 -> 16.43835616
B132: ID0130 | C132: 2012-05-26T00:42:34 | D132: 1000 | E132: 12000 | F132: USD | G132: =tblSalaries[[#This Row],[clean Salary (in local currency)]]*VLOOKUP(tblSalaries[[#This Row],[Currency]],tblXrate[],2,FALSE) -> 12000 | H132: Freelance | I132: Consultant | J132: Pakistan | K132: =VLOOKUP(tblSalaries[[#This Row],[Where do you work]],tblCountries[[Actual]:[Mapping]],2,FALSE) -> Pakistan | L132: 2 | M132: >5<=10 | N132: ASIA | O132: =(G132/365)/L132 -> 16.43835616
B133: ID0131 | C133: 2012-05-26T00:42:41 | D133: 28159.2 | E133: 28159 | F133: GBP | G133: =tblSalaries[[#This Row],[clean Salary (in local currency)]]*VLOOKUP(tblSalaries[[#This Row],[Currency]],tblXrate[],2,FALSE) -> 44383.60396 | H133: Data Analyst | I133: Analyst | J133: UK | K133: =VLOOKUP(tblSalaries[[#This Row],[Where do you work]],tblCountries[[Actual]:[Mapping]],2,FALSE) -> UK | L133: 8 | M133: >20 | N133: EUROPE | O133: =(G133/365)/L133 -> 15.19986437
B134: ID0132 | C134: 2012-05-26T00:42:46 | D134: 45000 | E134: 45000 | F134: USD | G134: =tblSalaries[[#This Row],[clean Salary (in local currency)]]*VLOOKUP(tblSalaries[[#This Row],[Currency]],tblXrate[],2,FALSE) -> 45000 | H134: DBA | I134: Analyst | J134: USA | K134: =VLOOKUP(tblSalaries[[#This Row],[Where do you work]],tblCountries[[Actual]:[Mapping]],2,FALSE) -> USA | L134: 6 | M134: >20 | N134: N. AMERICA | O134: =(G134/365)/L134 -> 20.54794521
B135: ID0133 | C135: 2012-05-26T00:42:58 | D135: 54000 | E135: 54000 | F135: USD | G135: =tblSalaries[[#This Row],[clean Salary (in local currency)]]*VLOOKUP(tblSalaries[[#This Row],[Currency]],tblXrate[],2,FALSE) -> 54000 | H135: Research Analyst | I135: Analyst | J135: USA | K135: =VLOOKUP(tblSalaries[[#This Row],[Where do you work]],tblCountries[[Actual]:[Mapping]],2,FALSE) -> USA | L135: 3 | M135: >10<=20 | N135: N. AMERICA | O135: =(G135/365)/L135 -> 49.31506849
B136: ID0134 | C136: 2012-05-26T00:43:03 | D136: 70000 | E136: 70000 | F136: GBP | G136: =tblSalaries[[#This Row],[clean Salary (in local currency)]]*VLOOKUP(tblSalaries[[#This Row],[Currency]],tblXrate[],2,FALSE) -> 110332.479 | H136: Project Manager | I136: Manager | J136: UK | K136: =VLOOKUP(tblSalaries[[#This Row],[Where do you work]],tblCountries[[Actual]:[Mapping]],2,FALSE) -> UK | L136: 3 | M136: >20 | N136: EUROPE | O136: =(G136/365)/L136 -> 100.7602548
B137: ID0135 | C137: 2012-05-26T00:43:07 | D137: 71000 | E137: 71000 | F137: USD | G137: =tblSalaries[[#This Row],[clean Salary (in local currency)]]*VLOOKUP(tblSalaries[[#This Row],[Currency]],tblXrate[],2,FALSE) -> 71000 | H137: Market Research Analyst | I137: Analyst | J137: USA | K137: =VLOOKUP(tblSalaries[[#This Row],[Where do you work]],tblCountries[[Actual]:[Mapping]],2,FALSE) -> USA | L137: 6 | M137: >20 | N137: N. AMERICA | O137: =(G137/365)/L137 -> 32.42009132
B138: ID0136 | C138: 2012-05-26T00:43:08 | D138: 800000 | E138: 800000 | F138: INR | G138: =tblSalaries[[#This Row],[clean Salary (in local currency)]]*VLOOKUP(tblSalaries[[#This Row],[Currency]],tblXrate[],2,FALSE) -> 14246.33335 | H138: Manager : Accounts | I138: Manager | J138: India | K138: =VLOOKUP(tblSalaries[[#This Row],[Where do you work]],tblCountries[[Actual]:[Mapping]],2,FALSE) -> India | L138: 3 | M138: >20 | N138: ASIA | O138: =(G138/365)/L138 -> 13.01035009
B139: ID0137 | C139: 2012-05-26T00:43:17 | D139: 70000 | E139: 70000 | F139: CAD | G139: =tblSalaries[[#This Row],[clean Salary (in local currency)]]*VLOOKUP(tblSalaries[[#This Row],[Currency]],tblXrate[],2,FALSE) -> 68835.30661 | H139: project manager | I139: Manager | J139: canada | K139: =VLOOKUP(tblSalaries[[#This Row],[Where do you work]],tblCountries[[Actual]:[Mapping]],2,FALSE) -> Canada | L139: 6 | M139: >20 | N139: N. AMERICA | O139: =(G139/365)/L139 -> 31.43164685
B140: ID0138 | C140: 2012-05-26T00:43:25 | D140: 50000 | E140: 50000 | F140: CAD | G140: =tblSalaries[[#This Row],[clean Salary (in local currency)]]*VLOOKUP(tblSalaries[[#This Row],[Currency]],tblXrate[],2,FALSE) -> 49168.07615 | H140: Inventory manger | I140: Manager | J140: Canada | K140: =VLOOKUP(tblSalaries[[#This Row],[Where do you work]],tblCountries[[Actual]:[Mapping]],2,FALSE) -> Canada | L140: 6 | M140: >20 | N140: N. AMERICA | O140: =(G140/365)/L140 -> 22.45117632
B141: ID0139 | C141: 2012-05-26T00:43:27 | D141: 40000 | E141: 40000 | F141: USD | G141: =tblSalaries[[#This Row],[clean Salary (in local currency)]]*VLOOKUP(tblSalaries[[#This Row],[Currency]],tblXrate[],2,FALSE) -> 40000 | H141: Business Analyst | I141: Analyst | J141: USA | K141: =VLOOKUP(tblSalaries[[#This Row],[Where do you work]],tblCountries[[Actual]:[Mapping]],2,FALSE) -> USA | L141: 6 | M141: >5<=10 | N141: N. AMERICA | O141: =(G141/365)/L141 -> 18.26484018
B142: ID0140 | C142: 2012-05-26T00:43:34 | D142: $62,000 CND | E142: 62000 | F142: CAD | G142: =tblSalaries[[#This Row],[clean Salary (in local currency)]]*VLOOKUP(tblSalaries[[#This Row],[Currency]],tblXrate[],2,FALSE) -> 60968.41443 | H142: Process Technician | I142: Analyst | J142: Canada | K142: =VLOOKUP(tblSalaries[[#This Row],[Where do you work]],tblCountries[[Actual]:[Mapping]],2,FALSE) -> Canada | L142: 3 | M142: >20 | N142: N. AMERICA | O142: =(G142/365)/L142 -> 55.67891729
B143: ID0141 | C143: 2012-05-26T00:43:36 | D143: 28000rs | E143: 336000 | F143: INR | G143: =tblSalaries[[#This Row],[clean Salary (in local currency)]]*VLOOKUP(tblSalaries[[#This Row],[Currency]],tblXrate[],2,FALSE) -> 5983.460007 | H143: MIS Team Leader | I143: Reporting | J143: India | K143: =VLOOKUP(tblSalaries[[#This Row],[Where do you work]],tblCountries[[Actual]:[Mapping]],2,FALSE) -> India | L143: 6 | M143: >20 | N143: ASIA | O143: =(G143/365)/L143 -> 2.732173519
B144: ID0142 | C144: 2012-05-26T00:43:36 | D144: 53000 | E144: 53000 | F144: USD | G144: =tblSalaries[[#This Row],[clean Salary (in local currency)]]*VLOOKUP(tblSalaries[[#This Row],[Currency]],tblXrate[],2,FALSE) -> 53000 | H144: Data Analyst | I144: Analyst | J144: USA | K144: =VLOOKUP(tblSalaries[[#This Row],[Where do you work]],tblCountries[[Actual]:[Mapping]],2,FALSE) -> USA | L144: 6 | M144: >10<=20 | N144: N. AMERICA | O144: =(G144/365)/L144 -> 24.20091324
B145: ID0143 | C145: 2012-05-26T00:43:49 | D145: 104000 | E145: 104000 | F145: USD | G145: =tblSalaries[[#This Row],[clean Salary (in local currency)]]*VLOOKUP(tblSalaries[[#This Row],[Currency]],tblXrate[],2,FALSE) -> 104000 | H145: Finance Director | I145: CXO or Top Mgmt. | J145: USA | K145: =VLOOKUP(tblSalaries[[#This Row],[Where do you work]],tblCountries[[Actual]:[Mapping]],2,FALSE) -> USA | L145: 3 | M145: >20 | N145: N. AMERICA | O145: =(G145/365)/L145 -> 94.97716895
B146: ID0144 | C146: 2012-05-26T00:44:02 | D146: 57000 | E146: 57000 | F146: USD | G146: =tblSalaries[[#This Row],[clean Salary (in local currency)]]*VLOOKUP(tblSalaries[[#This Row],[Currency]],tblXrate[],2,FALSE) -> 57000 | H146: Industrial Engineer | I146: Engineer | J146: USA | K146: =VLOOKUP(tblSalaries[[#This Row],[Where do you work]],tblCountries[[Actual]:[Mapping]],2,FALSE) -> USA | L146: 6 | M146: >20 | N146: N. AMERICA | O146: =(G146/365)/L146 -> 26.02739726
B147: ID0145 | C147: 2012-05-26T00:44:09 | D147: 45000 | E147: 45000 | F147: USD | G147: =tblSalaries[[#This Row],[clean Salary (in local currency)]]*VLOOKUP(tblSalaries[[#This Row],[Currency]],tblXrate[],2,FALSE) -> 45000 | H147: data analyst | I147: Analyst | J147: USA | K147: =VLOOKUP(tblSalaries[[#This Row],[Where do you work]],tblCountries[[Actual]:[Mapping]],2,FALSE) -> USA | L147: 3 | M147: >20 | N147: N. AMERICA | O147: =(G147/365)/L147 -> 41.09589041
B148: ID0146 | C148: 2012-05-26T00:44:15 | D148: 92000 | E148: 92000 | F148: USD | G148: =tblSalaries[[#This Row],[clean Salary (in local currency)]]*VLOOKUP(tblSalaries[[#This Row],[Currency]],tblXrate[],2,FALSE) -> 92000 | H148: Senior Financial & Systems Analyst | I148: Analyst | J148: USA | K148: =VLOOKUP(tblSalaries[[#This Row],[Where do you work]],tblCountries[[Actual]:[Mapping]],2,FALSE) -> USA | L148: 6 | M148: >5<=10 | N148: N. AMERICA | O148: =(G148/365)/L148 -> 42.00913242
B149: ID0147 | C149: 2012-05-26T00:44:18 | D149: 88000 | E149: 88000 | F149: USD | G149: =tblSalaries[[#This Row],[clean Salary (in local currency)]]*VLOOKUP(tblSalaries[[#This Row],[Currency]],tblXrate[],2,FALSE) -> 88000 | H149: project manager - metrics | I149: Manager | J149: USA | K149: =VLOOKUP(tblSalaries[[#This Row],[Where do you work]],tblCountries[[Actual]:[Mapping]],2,FALSE) -> USA | L149: 6 | M149: >10<=20 | N149: N. AMERICA | O149: =(G149/365)/L149 -> 40.1826484
B150: ID0148 | C150: 2012-05-26T00:44:20 | D150: 80000 | E150: 80000 | F150: USD | G150: =tblSalaries[[#This Row],[clean Salary (in local currency)]]*VLOOKUP(tblSalaries[[#This Row],[Currency]],tblXrate[],2,FALSE) -> 80000 | H150: Informatics Research Analyst | I150: Analyst | J150: USA | K150: =VLOOKUP(tblSalaries[[#This Row],[Where do you work]],tblCountries[[Actual]:[Mapping]],2,FALSE) -> USA | L150: 3 | M150: >5<=10 | N150: N. AMERICA | O150: =(G150/365)/L150 -> 73.05936073
B151: ID0149 | C151: 2012-05-26T00:44:22 | D151: 69000 | E151: 69000 | F151: USD | G151: =tblSalaries[[#This Row],[clean Salary (in local currency)]]*VLOOKUP(tblSalaries[[#This Row],[Currency]],tblXrate[],2,FALSE) -> 69000 | H151: Business Technical Consultant | I151: Consultant | J151: USA | K151: =VLOOKUP(tblSalaries[[#This Row],[Where do you work]],tblCountries[[Actual]:[Mapping]],2,FALSE) -> USA | L151: 6 | M151: >20 | N151: N. AMERICA | O151: =(G151/365)/L151 -> 31.50684932
B152: ID0150 | C152: 2012-05-26T00:44:23 | D152: 50000 | E152: 50000 | F152: USD | G152: =tblSalaries[[#This Row],[clean Salary (in local currency)]]*VLOOKUP(tblSalaries[[#This Row],[Currency]],tblXrate[],2,FALSE) -> 50000 | H152: Business Operations Reporting Analyst | I152: Analyst | J152: Mexico | K152: =VLOOKUP(tblSalaries[[#This Row],[Where do you work]],tblCountries[[Actual]:[Mapping]],2,FALSE) -> Mexico | L152: 8 | M152: >20 | N152: N. AMERICA | O152: =(G152/365)/L152 -> 17.12328767
B153: ID0151 | C153: 2012-05-26T00:44:40 | D153: 35000 | E153: 35000 | F153: USD | G153: =tblSalaries[[#This Row],[clean Salary (in local currency)]]*VLOOKUP(tblSalaries[[#This Row],[Currency]],tblXrate[],2,FALSE) -> 35000 | H153: Program Services Coordinator | I153: Manager | J153: USA | K153: =VLOOKUP(tblSalaries[[#This Row],[Where do you work]],tblCountries[[Actual]:[Mapping]],2,FALSE) -> USA | L153: 3 | M153: >20 | N153: N. AMERICA | O153: =(G153/365)/L153 -> 31.96347032
B154: ID0152 | C154: 2012-05-26T00:44:59 | D154: 96000 | E154: 96000 | F154: USD | G154: =tblSalaries[[#This Row],[clean Salary (in local currency)]]*VLOOKUP(tblSalaries[[#This Row],[Currency]],tblXrate[],2,FALSE) -> 96000 | H154: Specialist - Finance Planning and Analysis | I154: Analyst | J154: USA | K154: =VLOOKUP(tblSalaries[[#This Row],[Where do you work]],tblCountries[[Actual]:[Mapping]],2,FALSE) -> USA | L154: 6 | M154: >20 | N154: N. AMERICA | O154: =(G154/365)/L154 -> 43.83561644
B155: ID0153 | C155: 2012-05-26T00:45:00 | D155: 65000 | E155: 65000 | F155: USD | G155: =tblSalaries[[#This Row],[clean Salary (in local currency)]]*VLOOKUP(tblSalaries[[#This Row],[Currency]],tblXrate[],2,FALSE) -> 65000 | H155: Sr Accountant | I155: Accountant | J155: USA | K155: =VLOOKUP(tblSalaries[[#This Row],[Where do you work]],tblCountries[[Actual]:[Mapping]],2,FALSE) -> USA | L155: 8 | M155: >20 | N155: N. AMERICA | O155: =(G155/365)/L155 -> 22.26027397
B156: ID0154 | C156: 2012-05-26T00:45:06 | D156: 37440 | E156: 37440 | F156: USD | G156: =tblSalaries[[#This Row],[clean Salary (in local currency)]]*VLOOKUP(tblSalaries[[#This Row],[Currency]],tblXrate[],2,FALSE) -> 37440 | H156: sales analyst | I156: Analyst | J156: USA | K156: =VLOOKUP(tblSalaries[[#This Row],[Where do you work]],tblCountries[[Actual]:[Mapping]],2,FALSE) -> USA | L156: 8 | M156: >10<=20 | N156: N. AMERICA | O156: =(G156/365)/L156 -> 12.82191781
B157: ID0155 | C157: 2012-05-26T00:45:11 | D157: 15500 | E157: 15500 | F157: USD | G157: =tblSalaries[[#This Row],[clean Salary (in local currency)]]*VLOOKUP(tblSalaries[[#This Row],[Currency]],tblXrate[],2,FALSE) -> 15500 | H157: Proces auditor | I157: Accountant | J157: Mexico | K157: =VLOOKUP(tblSalaries[[#This Row],[Where do you work]],tblCountries[[Actual]:[Mapping]],2,FALSE) -> Mexico | L157: 8 | M157: >20 | N157: N. AMERICA | O157: =(G157/365)/L157 -> 5.308219178
B158: ID0156 | C158: 2012-05-26T00:45:17 | D158: 90000 USD | E158: 90000 | F158: USD | G158: =tblSalaries[[#This Row],[clean Salary (in local currency)]]*VLOOKUP(tblSalaries[[#This Row],[Currency]],tblXrate[],2,FALSE) -> 90000 | H158: Senior Data Quality Analyst | I158: Analyst | J158: USA | K158: =VLOOKUP(tblSalaries[[#This Row],[Where do you work]],tblCountries[[Actual]:[Mapping]],2,FALSE) -> USA | L158: 3 | M158: >20 | N158: N. AMERICA | O158: =(G158/365)/L158 -> 82.19178082
B159: ID0157 | C159: 2012-05-26T00:45:46 | D159: 66500 | E159: 66500 | F159: USD | G159: =tblSalaries[[#This Row],[clean Salary (in local currency)]]*VLOOKUP(tblSalaries[[#This Row],[Currency]],tblXrate[],2,FALSE) -> 66500 | H159: Sr Business Analyst | I159: Analyst | J159: USA | K159: =VLOOKUP(tblSalaries[[#This Row],[Where do you work]],tblCountries[[Actual]:[Mapping]],2,FALSE) -> USA | L159: 8 | M159: >10<=20 | N159: N. AMERICA | O159: =(G159/365)/L159 -> 22.7739726
B160: ID0158 | C160: 2012-05-26T00:45:49 | D160: 100000 | E160: 100000 | F160: USD | G160: =tblSalaries[[#This Row],[clean Salary (in local currency)]]*VLOOKUP(tblSalaries[[#This Row],[Currency]],tblXrate[],2,FALSE) -> 100000 | H160: COST ACCOUNTANT | I160: Accountant | J160: USA | K160: =VLOOKUP(tblSalaries[[#This Row],[Where do you work]],tblCountries[[Actual]:[Mapping]],2,FALSE) -> USA | L160: 8 | M160: >20 | N160: N. AMERICA | O160: =(G160/365)/L160 -> 34.24657534
B161: ID0159 | C161: 2012-05-26T00:45:51 | D161: Â£32250 | E161: 32250 | F161: GBP | G161: =tblSalaries[[#This Row],[clean Salary (in local currency)]]*VLOOKUP(tblSalaries[[#This Row],[Currency]],tblXrate[],2,FALSE) -> 50831.74927 | H161: project Support | I161: Manager | J161: UK | K161: =VLOOKUP(tblSalaries[[#This Row],[Where do you work]],tblCountries[[Actual]:[Mapping]],2,FALSE) -> UK | L161: 6 | M161: >20 | N161: EUROPE | O161: =(G161/365)/L161 -> 23.21084442
B162: ID0160 | C162: 2012-05-26T00:45:53 | D162: 420000 | E162: 420000 | F162: INR | G162: =tblSalaries[[#This Row],[clean Salary (in local currency)]]*VLOOKUP(tblSalaries[[#This Row],[Currency]],tblXrate[],2,FALSE) -> 7479.325009 | H162: managerial | I162: Manager | J162: India | K162: =VLOOKUP(tblSalaries[[#This Row],[Where do you work]],tblCountries[[Actual]:[Mapping]],2,FALSE) -> India | L162: 2 | M162: >10<=20 | N162: ASIA | O162: =(G162/365)/L162 -> 10.2456507
B163: ID0161 | C163: 2012-05-26T00:46:00 | D163: 75000 | E163: 75000 | F163: USD | G163: =tblSalaries[[#This Row],[clean Salary (in local currency)]]*VLOOKUP(tblSalaries[[#This Row],[Currency]],tblXrate[],2,FALSE) -> 75000 | H163: Program Analyst | I163: Analyst | J163: USA | K163: =VLOOKUP(tblSalaries[[#This Row],[Where do you work]],tblCountries[[Actual]:[Mapping]],2,FALSE) -> USA | L163: 2 | M163: >20 | N163: N. AMERICA | O163: =(G163/365)/L163 -> 102.739726
B164: ID0162 | C164: 2012-05-26T00:46:25 | D164: 58 | E164: 58000 | F164: USD | G164: =tblSalaries[[#This Row],[clean Salary (in local currency)]]*VLOOKUP(tblSalaries[[#This Row],[Currency]],tblXrate[],2,FALSE) -> 58000 | H164: Team Lead - Computer Discounts | I164: Manager | J164: Canada | K164: =VLOOKUP(tblSalaries[[#This Row],[Where do you work]],tblCountries[[Actual]:[Mapping]],2,FALSE) -> Canada | L164: 2 | M164: >20 | N164: N. AMERICA | O164: =(G164/365)/L164 -> 79.45205479
B165: ID0163 | C165: 2012-05-26T00:46:29 | D165: 55000 | E165: 55000 | F165: USD | G165: =tblSalaries[[#This Row],[clean Salary (in local currency)]]*VLOOKUP(tblSalaries[[#This Row],[Currency]],tblXrate[],2,FALSE) -> 55000 | H165: Change Architect | I165: Manager | J165: USA | K165: =VLOOKUP(tblSalaries[[#This Row],[Where do you work]],tblCountries[[Actual]:[Mapping]],2,FALSE) -> USA | L165: 3 | M165: >5<=10 | N165: N. AMERICA | O165: =(G165/365)/L165 -> 50.2283105
B166: ID0164 | C166: 2012-05-26T00:47:42 | D166: 60000 | E166: 60000 | F166: USD | G166: =tblSalaries[[#This Row],[clean Salary (in local currency)]]*VLOOKUP(tblSalaries[[#This Row],[Currency]],tblXrate[],2,FALSE) -> 60000 | H166: Telecom Technician | I166: Analyst | J166: USA | K166: =VLOOKUP(tblSalaries[[#This Row],[Where do you work]],tblCountries[[Actual]:[Mapping]],2,FALSE) -> USA | L166: 6 | M166: >5<=10 | N166: N. AMERICA | O166: =(G166/365)/L166 -> 27.39726027
B167: ID0165 | C167: 2012-05-26T00:47:45 | D167: Rs. 1300000 | E167: 1300000 | F167: INR | G167: =tblSalaries[[#This Row],[clean Salary (in local currency)]]*VLOOKUP(tblSalaries[[#This Row],[Currency]],tblXrate[],2,FALSE) -> 23150.29169 | H167: Manager | I167: Manager | J167: India | K167: =VLOOKUP(tblSalaries[[#This Row],[Where do you work]],tblCountries[[Actual]:[Mapping]],2,FALSE) -> India | L167: 6 | M167: >5<=10 | N167: ASIA | O167: =(G167/365)/L167 -> 10.57090945
B168: ID0166 | C168: 2012-05-26T00:47:50 | D168: 107000 | E168: 107000 | F168: CAD | G168: =tblSalaries[[#This Row],[clean Salary (in local currency)]]*VLOOKUP(tblSalaries[[#This Row],[Currency]],tblXrate[],2,FALSE) -> 105219.683 | H168: Manager, Asset Optimization | I168: Manager | J168: Canada | K168: =VLOOKUP(tblSalaries[[#This Row],[Where do you work]],tblCountries[[Actual]:[Mapping]],2,FALSE) -> Canada | L168: 3 | M168: <=5 | N168: N. AMERICA | O168: =(G168/365)/L168 -> 96.09103467
B169: ID0167 | C169: 2012-05-26T00:47:57 | D169: 145000 | E169: 145000 | F169: USD | G169: =tblSalaries[[#This Row],[clean Salary (in local currency)]]*VLOOKUP(tblSalaries[[#This Row],[Currency]],tblXrate[],2,FALSE) -> 145000 | H169: Financialcontroller | I169: Controller | J169: Switzerland | K169: =VLOOKUP(tblSalaries[[#This Row],[Where do you work]],tblCountries[[Actual]:[Mapping]],2,FALSE) -> Switzerland | L169: 8 | M169: >10<=20 | N169: EUROPE | O169: =(G169/365)/L169 -> 49.65753425
B170: ID0168 | C170: 2012-05-26T00:48:04 | D170: 22880 | E170: 22880 | F170: USD | G170: =tblSalaries[[#This Row],[clean Salary (in local currency)]]*VLOOKUP(tblSalaries[[#This Row],[Currency]],tblXrate[],2,FALSE) -> 22880 | H170: Accounting | I170: Accountant | J170: USA | K170: =VLOOKUP(tblSalaries[[#This Row],[Where do you work]],tblCountries[[Actual]:[Mapping]],2,FALSE) -> USA | L170: 6 | M170: >10<=20 | N170: N. AMERICA | O170: =(G170/365)/L170 -> 10.44748858
B171: ID0169 | C171: 2012-05-26T00:48:07 | D171: 80000 | E171: 80000 | F171: USD | G171: =tblSalaries[[#This Row],[clean Salary (in local currency)]]*VLOOKUP(tblSalaries[[#This Row],[Currency]],tblXrate[],2,FALSE) -> 80000 | H171: Consultant, HR Services & Governance | I171: Consultant | J171: USA | K171: =VLOOKUP(tblSalaries[[#This Row],[Where do you work]],tblCountries[[Actual]:[Mapping]],2,FALSE) -> USA | L171: 6 | M171: >10<=20 | N171: N. AMERICA | O171: =(G171/365)/L171 -> 36.52968037
B172: ID0170 | C172: 2012-05-26T00:48:11 | D172: Rs 5 lakh | E172: 500000 | F172: INR | G172: =tblSalaries[[#This Row],[clean Salary (in local currency)]]*VLOOKUP(tblSalaries[[#This Row],[Currency]],tblXrate[],2,FALSE) -> 8903.958344 | H172: QA Executive | I172: Analyst | J172: India | K172: =VLOOKUP(tblSalaries[[#This Row],[Where do you work]],tblCountries[[Actual]:[Mapping]],2,FALSE) -> India | L172: 3 | M172: >10<=20 | N172: ASIA | O172: =(G172/365)/L172 -> 8.131468807
B173: ID0171 | C173: 2012-05-26T00:48:46 | D173: 90000 | E173: 90000 | F173: CAD | G173: =tblSalaries[[#This Row],[clean Salary (in local currency)]]*VLOOKUP(tblSalaries[[#This Row],[Currency]],tblXrate[],2,FALSE) -> 88502.53707 | H173: Senior Actuarial Analyst | I173: Analyst | J173: Canada | K173: =VLOOKUP(tblSalaries[[#This Row],[Where do you work]],tblCountries[[Actual]:[Mapping]],2,FALSE) -> Canada | L173: 6 | M173: >20 | N173: N. AMERICA | O173: =(G173/365)/L173 -> 40.41211738
B174: ID0172 | C174: 2012-05-26T00:48:48 | D174: 180000 | E174: 180000 | F174: INR | G174: =tblSalaries[[#This Row],[clean Salary (in local currency)]]*VLOOKUP(tblSalaries[[#This Row],[Currency]],tblXrate[],2,FALSE) -> 3205.425004 | H174: Sr. Associate | I174: Analyst | J174: India | K174: =VLOOKUP(tblSalaries[[#This Row],[Where do you work]],tblCountries[[Actual]:[Mapping]],2,FALSE) -> India | L174: 6 | M174: >20 | N174: ASIA | O174: =(G174/365)/L174 -> 1.463664385
B175: ID0173 | C175: 2012-05-26T00:48:48 | D175: 46584 | E175: 46584 | F175: USD | G175: =tblSalaries[[#This Row],[clean Salary (in local currency)]]*VLOOKUP(tblSalaries[[#This Row],[Currency]],tblXrate[],2,FALSE) -> 46584 | H175: Budget Analyst | I175: Analyst | J175: USA | K175: =VLOOKUP(tblSalaries[[#This Row],[Where do you work]],tblCountries[[Actual]:[Mapping]],2,FALSE) -> USA | L175: 6 | M175: >20 | N175: N. AMERICA | O175: =(G175/365)/L175 -> 21.27123288
B176: ID0174 | C176: 2012-05-26T00:48:48 | D176: 67000 | E176: 67000 | F176: USD | G176: =tblSalaries[[#This Row],[clean Salary (in local currency)]]*VLOOKUP(tblSalaries[[#This Row],[Currency]],tblXrate[],2,FALSE) -> 67000 | H176: B.I. Data Analyst II | I176: Analyst | J176: USA | K176: =VLOOKUP(tblSalaries[[#This Row],[Where do you work]],tblCountries[[Actual]:[Mapping]],2,FALSE) -> USA | L176: 6 | M176: >20 | N176: N. AMERICA | O176: =(G176/365)/L176 -> 30.59360731
B177: ID0175 | C177: 2012-05-26T00:48:57 | D177: Rd. 11 lakhs | E177: 1100000 | F177: INR | G177: =tblSalaries[[#This Row],[clean Salary (in local currency)]]*VLOOKUP(tblSalaries[[#This Row],[Currency]],tblXrate[],2,FALSE) -> 19588.70836 | H177: Asst manager investor relations and business analytics | I177: Manager | J177: India | K177: =VLOOKUP(tblSalaries[[#This Row],[Where do you work]],tblCountries[[Actual]:[Mapping]],2,FALSE) -> India | L177: 6 | M177: >10<=20 | N177: ASIA | O177: =(G177/365)/L177 -> 8.944615688
B178: ID0176 | C178: 2012-05-26T00:49:18 | D178: 92000 | E178: 92000 | F178: USD | G178: =tblSalaries[[#This Row],[clean Salary (in local currency)]]*VLOOKUP(tblSalaries[[#This Row],[Currency]],tblXrate[],2,FALSE) -> 92000 | H178: Industrial Engineer (Fed) | I178: Engineer | J178: USA | K178: =VLOOKUP(tblSalaries[[#This Row],[Where do you work]],tblCountries[[Actual]:[Mapping]],2,FALSE) -> USA | L178: 6 | M178: >20 | N178: N. AMERICA | O178: =(G178/365)/L178 -> 42.00913242
B179: ID0177 | C179: 2012-05-26T00:49:21 | D179: 75000 | E179: 75000 | F179: USD | G179: =tblSalaries[[#This Row],[clean Salary (in local currency)]]*VLOOKUP(tblSalaries[[#This Row],[Currency]],tblXrate[],2,FALSE) -> 75000 | H179: Informatics specialist | I179: Specialist | J179: USA | K179: =VLOOKUP(tblSalaries[[#This Row],[Where do you work]],tblCountries[[Actual]:[Mapping]],2,FALSE) -> USA | L179: 8 | M179: <=5 | N179: N. AMERICA | O179: =(G179/365)/L179 -> 25.68493151
B180: ID0178 | C180: 2012-05-26T00:49:35 | D180: 180000 | E180: 180000 | F180: INR | G180: =tblSalaries[[#This Row],[clean Salary (in local currency)]]*VLOOKUP(tblSalaries[[#This Row],[Currency]],tblXrate[],2,FALSE) -> 3205.425004 | H180: Sr. Associate | I180: Analyst | J180: India | K180: =VLOOKUP(tblSalaries[[#This Row],[Where do you work]],tblCountries[[Actual]:[Mapping]],2,FALSE) -> India | L180: 6 | M180: >5<=10 | N180: ASIA | O180: =(G180/365)/L180 -> 1.463664385
B181: ID0179 | C181: 2012-05-26T00:49:48 | D181: 18500 | E181: 18500 | F181: GBP | G181: =tblSalaries[[#This Row],[clean Salary (in local currency)]]*VLOOKUP(tblSalaries[[#This Row],[Currency]],tblXrate[],2,FALSE) -> 29159.29803 | H181: Trainee Management Accountant | I181: Manager | J181: UK | K181: =VLOOKUP(tblSalaries[[#This Row],[Where do you work]],tblCountries[[Actual]:[Mapping]],2,FALSE) -> UK | L181: 8 | M181: >20 | N181: EUROPE | O181: =(G181/365)/L181 -> 9.98606097
B182: ID0180 | C182: 2012-05-26T00:49:50 | D182: 40000 | E182: 40000 | F182: USD | G182: =tblSalaries[[#This Row],[clean Salary (in local currency)]]*VLOOKUP(tblSalaries[[#This Row],[Currency]],tblXrate[],2,FALSE) -> 40000 | H182: Senior analyst | I182: Analyst | J182: USA | K182: =VLOOKUP(tblSalaries[[#This Row],[Where do you work]],tblCountries[[Actual]:[Mapping]],2,FALSE) -> USA | L182: 8 | M182: >10<=20 | N182: N. AMERICA | O182: =(G182/365)/L182 -> 13.69863014
B183: ID0181 | C183: 2012-05-26T00:49:59 | D183: 111680 | E183: 111680 | F183: USD | G183: =tblSalaries[[#This Row],[clean Salary (in local currency)]]*VLOOKUP(tblSalaries[[#This Row],[Currency]],tblXrate[],2,FALSE) -> 111680 | H183: Director of Analytics | I183: Analyst | J183: USA | K183: =VLOOKUP(tblSalaries[[#This Row],[Where do you work]],tblCountries[[Actual]:[Mapping]],2,FALSE) -> USA | L183: 3 | M183: <=5 | N183: N. AMERICA | O183: =(G183/365)/L183 -> 101.9908676
B184: ID0182 | C184: 2012-05-26T00:50:11 | D184: 41.406 | E184: 41406 | F184: USD | G184: =tblSalaries[[#This Row],[clean Salary (in local currency)]]*VLOOKUP(tblSalaries[[#This Row],[Currency]],tblXrate[],2,FALSE) -> 41406 | H184: Executive Assistant | I184: Analyst | J184: Canada | K184: =VLOOKUP(tblSalaries[[#This Row],[Where do you work]],tblCountries[[Actual]:[Mapping]],2,FALSE) -> Canada | L184: 2 | M184: >20 | N184: N. AMERICA | O184: =(G184/365)/L184 -> 56.72054795
B185: ID0183 | C185: 2012-05-26T00:50:15 | D185: 70000 | E185: 70000 | F185: USD | G185: =tblSalaries[[#This Row],[clean Salary (in local currency)]]*VLOOKUP(tblSalaries[[#This Row],[Currency]],tblXrate[],2,FALSE) -> 70000 | H185: Project Speciast | I185: Manager | J185: USA | K185: =VLOOKUP(tblSalaries[[#This Row],[Where do you work]],tblCountries[[Actual]:[Mapping]],2,FALSE) -> USA | L185: 6 | M185: <=5 | N185: N. AMERICA | O185: =(G185/365)/L185 -> 31.96347032
B186: ID0184 | C186: 2012-05-26T00:50:31 | D186: 40700 | E186: 40700 | F186: USD | G186: =tblSalaries[[#This Row],[clean Salary (in local currency)]]*VLOOKUP(tblSalaries[[#This Row],[Currency]],tblXrate[],2,FALSE) -> 40700 | H186: Sales Coordinator & Analytical Support | I186: Analyst | J186: USA | K186: =VLOOKUP(tblSalaries[[#This Row],[Where do you work]],tblCountries[[Actual]:[Mapping]],2,FALSE) -> USA | L186: 2 | M186: >20 | N186: N. AMERICA | O186: =(G186/365)/L186 -> 55.75342466
B187: ID0185 | C187: 2012-05-26T00:50:32 | D187: 40000 | E187: 40000 | F187: USD | G187: =tblSalaries[[#This Row],[clean Salary (in local currency)]]*VLOOKUP(tblSalaries[[#This Row],[Currency]],tblXrate[],2,FALSE) -> 40000 | H187: analyst | I187: Analyst | J187: USA | K187: =VLOOKUP(tblSalaries[[#This Row],[Where do you work]],tblCountries[[Actual]:[Mapping]],2,FALSE) -> USA | L187: 6 | M187: >20 | N187: N. AMERICA | O187: =(G187/365)/L187 -> 18.26484018
B188: ID0186 | C188: 2012-05-26T00:50:38 | D188: 60000 | E188: 60000 | F188: USD | G188: =tblSalaries[[#This Row],[clean Salary (in local currency)]]*VLOOKUP(tblSalaries[[#This Row],[Currency]],tblXrate[],2,FALSE) -> 60000 | H188: Senior Staff Accountant | I188: Accountant | J188: USA | K188: =VLOOKUP(tblSalaries[[#This Row],[Where do you work]],tblCountries[[Actual]:[Mapping]],2,FALSE) -> USA | L188: 6 | M188: >10<=20 | N188: N. AMERICA | O188: =(G188/365)/L188 -> 27.39726027
B189: ID0187 | C189: 2012-05-26T00:50:41 | D189: 92000 | E189: 92000 | F189: CAD | G189: =tblSalaries[[#This Row],[clean Salary (in local currency)]]*VLOOKUP(tblSalaries[[#This Row],[Currency]],tblXrate[],2,FALSE) -> 90469.26012 | H189: Consultant - Retail Mkts | I189: Consultant | J189: Canada | K189: =VLOOKUP(tblSalaries[[#This Row],[Where do you work]],tblCountries[[Actual]:[Mapping]],2,FALSE) -> Canada | L189: 8 | M189: >20 | N189: N. AMERICA | O189: =(G189/365)/L189 -> 30.98262333
B190: ID0188 | C190: 2012-05-26T00:50:43 | D190: 13636.36 | E190: 13636 | F190: USD | G190: =tblSalaries[[#This Row],[clean Salary (in local currency)]]*VLOOKUP(tblSalaries[[#This Row],[Currency]],tblXrate[],2,FALSE) -> 13636 | H190: Process Manager | I190: Manager | J190: India | K190: =VLOOKUP(tblSalaries[[#This Row],[Where do you work]],tblCountries[[Actual]:[Mapping]],2,FALSE) -> India | L190: 8 | M190: >5<=10 | N190: ASIA | O190: =(G190/365)/L190 -> 4.669863014
B191: ID0189 | C191: 2012-05-26T00:50:43 | D191: 80000 | E191: 80000 | F191: USD | G191: =tblSalaries[[#This Row],[clean Salary (in local currency)]]*VLOOKUP(tblSalaries[[#This Row],[Currency]],tblXrate[],2,FALSE) -> 80000 | H191: Project Manager (Process Owner) | I191: Manager | J191: USA | K191: =VLOOKUP(tblSalaries[[#This Row],[Where do you work]],tblCountries[[Actual]:[Mapping]],2,FALSE) -> USA | L191: 3 | M191: >20 | N191: N. AMERICA | O191: =(G191/365)/L191 -> 73.05936073
B192: ID0190 | C192: 2012-05-26T00:51:00 | D192: 60000 CAD$ | E192: 60000 | F192: CAD | G192: =tblSalaries[[#This Row],[clean Salary (in local currency)]]*VLOOKUP(tblSalaries[[#This Row],[Currency]],tblXrate[],2,FALSE) -> 59001.69138 | H192: Demographer | I192: Analyst | J192: Canada | K192: =VLOOKUP(tblSalaries[[#This Row],[Where do you work]],tblCountries[[Actual]:[Mapping]],2,FALSE) -> Canada | L192: 3 | M192: >20 | N192: N. AMERICA | O192: =(G192/365)/L192 -> 53.88282318
B193: ID0192 | C193: 2012-05-26T00:51:43 | D193: 28000 | E193: 28000 | F193: USD | G193: =tblSalaries[[#This Row],[clean Salary (in local currency)]]*VLOOKUP(tblSalaries[[#This Row],[Currency]],tblXrate[],2,FALSE) -> 28000 | H193: Administrative Assistant | I193: Analyst | J193: USA | K193: =VLOOKUP(tblSalaries[[#This Row],[Where do you work]],tblCountries[[Actual]:[Mapping]],2,FALSE) -> USA | L193: 6 | M193: >10<=20 | N193: N. AMERICA | O193: =(G193/365)/L193 -> 12.78538813
B194: ID0193 | C194: 2012-05-26T00:51:55 | D194: 60000 | E194: 60000 | F194: USD | G194: =tblSalaries[[#This Row],[clean Salary (in local currency)]]*VLOOKUP(tblSalaries[[#This Row],[Currency]],tblXrate[],2,FALSE) -> 60000 | H194: Accounting/Financial Analyst | I194: Analyst | J194: USA | K194: =VLOOKUP(tblSalaries[[#This Row],[Where do you work]],tblCountries[[Actual]:[Mapping]],2,FALSE) -> USA | L194: 6 | M194: >10<=20 | N194: N. AMERICA | O194: =(G194/365)/L194 -> 27.39726027
B195: ID0194 | C195: 2012-05-26T00:51:59 | D195: 96000 | E195: 96000 | F195: USD | G195: =tblSalaries[[#This Row],[clean Salary (in local currency)]]*VLOOKUP(tblSalaries[[#This Row],[Currency]],tblXrate[],2,FALSE) -> 96000 | H195: Business Process Specialist | I195: Specialist | J195: USA | K195: =VLOOKUP(tblSalaries[[#This Row],[Where do you work]],tblCountries[[Actual]:[Mapping]],2,FALSE) -> USA | L195: 3 | M195: >20 | N195: N. AMERICA | O195: =(G195/365)/L195 -> 87.67123288
B196: ID0195 | C196: 2012-05-26T00:52:21 | D196: 67000 | E196: 67000 | F196: USD | G196: =tblSalaries[[#This Row],[clean Salary (in local currency)]]*VLOOKUP(tblSalaries[[#This Row],[Currency]],tblXrate[],2,FALSE) -> 67000 | H196: Financial Analyst | I196: Analyst | J196: USA | K196: =VLOOKUP(tblSalaries[[#This Row],[Where do you work]],tblCountries[[Actual]:[Mapping]],2,FALSE) -> USA | L196: 6 | M196: >20 | N196: N. AMERICA | O196: =(G196/365)/L196 -> 30.59360731
B197: ID0196 | C197: 2012-05-26T00:52:25 | D197: 70000 | E197: 70000 | F197: USD | G197: =tblSalaries[[#This Row],[clean Salary (in local currency)]]*VLOOKUP(tblSalaries[[#This Row],[Currency]],tblXrate[],2,FALSE) -> 70000 | H197: Sr Financial Analyst | I197: Analyst | J197: USA | K197: =VLOOKUP(tblSalaries[[#This Row],[Where do you work]],tblCountries[[Actual]:[Mapping]],2,FALSE) -> USA | L197: 6 | M197: <=5 | N197: N. AMERICA | O197: =(G197/365)/L197 -> 31.96347032
B198: ID0197 | C198: 2012-05-26T00:52:30 | D198: 233000 | E198: 233000 | F198: INR | G198: =tblSalaries[[#This Row],[clean Salary (in local currency)]]*VLOOKUP(tblSalaries[[#This Row],[Currency]],tblXrate[],2,FALSE) -> 4149.244588 | H198: Asst. Manager (MIS) | I198: Manager | J198: India | K198: =VLOOKUP(tblSalaries[[#This Row],[Where do you work]],tblCountries[[Actual]:[Mapping]],2,FALSE) -> India | L198: 8 | M198: >20 | N198: ASIA | O198: =(G198/365)/L198 -> 1.420974174
B199: ID0198 | C199: 2012-05-26T00:52:37 | D199: US$ 99000 | E199: 99000 | F199: USD | G199: =tblSalaries[[#This Row],[clean Salary (in local currency)]]*VLOOKUP(tblSalaries[[#This Row],[Currency]],tblXrate[],2,FALSE) -> 99000 | H199: Business Controller | I199: Controller | J199: USA | K199: =VLOOKUP(tblSalaries[[#This Row],[Where do you work]],tblCountries[[Actual]:[Mapping]],2,FALSE) -> USA | L199: 6 | M199: >20 | N199: N. AMERICA | O199: =(G199/365)/L199 -> 45.20547945
B200: ID0200 | C200: 2012-05-26T00:53:00 | D200: 90000 | E200: 90000 | F200: USD | G200: =tblSalaries[[#This Row],[clean Salary (in local currency)]]*VLOOKUP(tblSalaries[[#This Row],[Currency]],tblXrate[],2,FALSE) -> 90000 | H200: Project Manager | I200: Manager | J200: USA | K200: =VLOOKUP(tblSalaries[[#This Row],[Where do you work]],tblCountries[[Actual]:[Mapping]],2,FALSE) -> USA | L200: 3 | M200: >20 | N200: N. AMERICA | O200: =(G200/365)/L200 -> 82.19178082
B201: ID0201 | C201: 2012-05-26T00:53:02 | D201: Rs. 275000 | E201: 275000 | F201: INR | G201: =tblSalaries[[#This Row],[clean Salary (in local currency)]]*VLOOKUP(tblSalaries[[#This Row],[Currency]],tblXrate[],2,FALSE) -> 4897.177089 | H201: low level monitoring | I201: Analyst | J201: India | K201: =VLOOKUP(tblSalaries[[#This Row],[Where do you work]],tblCountries[[Actual]:[Mapping]],2,FALSE) -> India | L201: 3 | M201: >10<=20 | N201: ASIA | O201: =(G201/365)/L201 -> 4.472307844
B202: ID0202 | C202: 2012-05-26T00:53:18 | D202: INR 16000 | E202: 192000 | F202: INR | G202: =tblSalaries[[#This Row],[clean Salary (in local currency)]]*VLOOKUP(tblSalaries[[#This Row],[Currency]],tblXrate[],2,FALSE) -> 3419.120004 | H202: Administrative | I202: Analyst | J202: India | K202: =VLOOKUP(tblSalaries[[#This Row],[Where do you work]],tblCountries[[Actual]:[Mapping]],2,FALSE) -> India | L202: 8 | M202: >5<=10 | N202: ASIA | O202: =(G202/365)/L202 -> 1.170931508
... 1686 more rows

Sheet Sheet1 (hidden)
B2: CONTINENT WISE TOTAL EXCEL REVENUE
A3: Sum of Salary in USD | B3: Column Labels
A4: Continent | B4: Accountant | C4: Analyst | D4: Consultant | E4: Controller | F4: CXO or Top Mgmt. | G4: Engineer | H4: Manager | I4: Misc. | J4: Reporting | K4: Specialist | L4: Total | M4: in %
A5: S. AMERICA | C5: 476099.5485 | D5: 232100 | E5: 22800 | G5: 98000 | H5: 176691.183 | J5: 20000 | L5: 1025690.731 | M5: =L5/$L$11 -> 0.01093476563
A6: AFRICA | B6: 277515.3229 | C6: 406572.9031 | D6: 82000 | E6: 23255.6033 | F6: 139630.6136 | G6: 33376.25139 | H6: 514339.2641 | J6: 59953.84615 | K6: 38666 | L6: 1575309.804 | M6: =L6/$L$11 -> 0.01679418851
A7: OCEANIA | B7: 756267.6958 | C7: 3611906.341 | D7: 795115.9464 | E7: 248857.9562 | F7: 285574.7038 | G7: 367270.4044 | H7: 2236085.099 | J7: 85000 | K7: 189703.1961 | L7: 8575781.343 | M7: =L7/$L$11 -> 0.09142537431
A8: ASIA | B8: 780501.6566 | C8: 3471382.729 | D8: 629764.5501 | E8: 462137.2401 | F8: 508371.8336 | G8: 610756.9831 | H8: 5180102.529 | I8: 70205.33953 | J8: 735865.1235 | K8: 305116.4334 | L8: 12754204.42 | M8: =L8/$L$11 -> 0.1359710406
A9: EUROPE | B9: 1328800.455 | C9: 5706708.299 | D9: 1852710.144 | E9: 1933115.648 | F9: 1124027.368 | G9: 768593.26 | H9: 5327600.66 | J9: 432836.1886 | K9: 664013.6924 | L9: 19138405.72 | M9: =L9/$L$11 -> 0.2040322434
A10: N. AMERICA | B10: 4173434.348 | C10: 20725086.86 | D10: 2073875.349 | E10: 1671796.797 | F10: 5237336.152 | G10: 1948924.307 | H10: 12505619.58 | I10: 251461 | J10: 291000 | K10: 1852962.111 | L10: 50731496.5 | M10: =L10/$L$11 -> 0.5408423876
A11: Total | B11: 7316519.479 | C11: 34397756.68 | D11: 5665565.99 | E11: 4361963.245 | F11: 7294940.671 | G11: 3826921.205 | H11: 25940438.32 | I11: 321666.3395 | J11: 1624655.158 | K11: 3050461.433 | L11: 93800888.52 | M11: 1
A15: Row Labels | B15: Min of hourly_rate | C15: Max of hourly_rate2 | D15: Average of hourly_rate
A16: (blank)
A17: Pakistan | B17: 0.6542931401 | C17: 43.83561644 | D17: 6.513820265
A18: Sri Lanka | B18: 0.8245543207 | C18: 29.10958904 | D18: 8.274499905
A19: India | B19: 0.8781986312 | C19: 170.7608449 | D19: 8.979678952
A20: Ethiopia | B20: 1.348788198 | C20: 1.348788198 | D20: 1.348788198
A21: Brazil | B21: 1.556506849 | C21: 109.5890411 | D21: 24.76622626
A22: Philippines | B22: 1.818469762 | C22: 29.45205479 | D22: 7.576762807
A23: Zambia | B23: 2.054794521 | C23: 6.849315068 | D23: 4.452054795
A24: Armenia | B24: 2.054794521 | C24: 2.054794521 | D24: 2.054794521
A25: Bhutan | B25: 2.191780822 | C25: 2.191780822 | D25: 2.191780822
A26: Dominican Republic | B26: 2.270205479 | C26: 2.270205479 | D26: 2.270205479
A27: Republic of Georgia | B27: 2.397260274 | C27: 2.397260274 | D27: 2.397260274
A28: Mongolia | B28: 2.486892007 | C28: 2.486892007 | D28: 2.486892007
A29: Romania | B29: 2.568493151 | C29: 41.09589041 | D29: 13.35805636
A30: Thailand | B30: 2.739726027 | C30: 63.01369863 | D30: 32.87671233
A31: Cambodia | B31: 2.739726027 | C31: 2.739726027 | D31: 2.739726027
A32: Baltic | B32: 2.876712329 | C32: 2.876712329 | D32: 2.876712329
A33: Bolivia | B33: 3.287671233 | C33: 3.287671233 | D33: 3.287671233
A34: Colombia | B34: 3.287671233 | C34: 11.64383562 | D34: 7.37739726
A35: Mexico | B35: 3.752391399 | C35: 34.24657534 | D35: 12.3182985
A36: Indonesia | B36: 3.835616438 | C36: 89.49771689 | D36: 23.61005041
A37: Latin America | B37: 4.01826484 | C37: 4.01826484 | D37: 4.01826484
A38: Bangladesh | B38: 4.109589041 | C38: 16.07124867 | D38: 10.09041885
A39: Estonia | B39: 4.109589041 | C39: 4.109589041 | D39: 4.109589041
A40: Asia | B40: 4.109589041 | C40: 4.109589041 | D40: 4.109589041
A41: Ukraine | B41: 4.109589041 | C41: 13.69863014 | D41: 8.424657534
A42: UAE | B42: 4.109589041 | C42: 58.06940639 | D42: 26.48058325
A43: South Africa | B43: 4.17540342 | C43: 120.2516185 | D43: 24.33869504
A44: Mauritius | B44: 4.281393328 | C44: 4.281393328 | D44: 4.281393328
A45: Slovakia | B45: 4.452054795 | C45: 4.452054795 | D45: 4.452054795
A46: Viet Nam | B46: 4.566210046 | C46: 4.566210046 | D46: 4.566210046
A47: USA | B47: 4.566210046 | C47: 547.9452055 | D47: 45.23305884
A48: Morocco | B48: 4.707433037 | C48: 4.707433037 | D48: 4.707433037
A49: Bulgaria | B49: 4.931506849 | C49: 4.931506849 | D49: 4.931506849
A50: Tunisia | B50: 5.02283105 | C50: 5.02283105 | D50: 5.02283105
A51: Saudi Arabia | B51: 5.123287671 | C51: 77.92998478 | D51: 18.88736682
A52: Croatia | B52: 5.136986301 | C52: 125.2996707 | D52: 50.78482174
A53: malaysia | B53: 5.207680565 | C53: 49.31506849 | D53: 21.30310394
A54: Portugal | B54: 5.220819612 | C54: 60.2739726 | D54: 24.70052874
A55: Republica Dominicana | B55: 5.275467318 | C55: 5.275467318 | D55: 5.275467318
A56: Peru | B56: 5.424657534 | C56: 5.424657534 | D56: 5.424657534
A57: iran | B57: 5.479452055 | C57: 27.39726027 | D57: 14.61187215
A58: Nigeria | B58: 5.628610226 | C58: 8.375372016 | D58: 6.835459834
A59: Montenegro | B59: 6.164383562 | C59: 6.164383562 | D59: 6.164383562
A60: Poland | B60: 6.170850613 | C60: 87.67123288 | D60: 24.04546053
A61: Hungary | B61: 6.392694064 | C61: 18.26484018 | D61: 11.53741478
A62: UK | B62: 6.506849315 | C62: 211.0682635 | D62: 41.1635573
A63: Spain | B63: 6.526024515 | C63: 174.0273204 | D63: 39.91848514
A64: Egypt | B64: 6.791586583 | C64: 6.791586583 | D64: 6.791586583
A65: Aruba | B65: 6.849315068 | C65: 6.849315068 | D65: 6.849315068
A66: Myanmar | B66: 6.849315068 | C66: 27.94520548 | D66: 17.39726027
A67: Lithuania | B67: 6.849315068 | C67: 6.849315068 | D67: 6.849315068
A68: Paraguay | B68: 6.849315068 | C68: 6.849315068 | D68: 6.849315068
A69: china | B69: 6.891406487 | C69: 8.675799087 | D69: 7.783602787
A70: Greece | B70: 6.961092816 | C70: 34.80546408 | D70: 20.68991476
A71: Ghana | B71: 8.219178082 | C71: 8.219178082 | D71: 8.219178082
A72: Russia | B72: 8.219178082 | C72: 65.75342466 | D72: 26.63099949
A73: Guyana | B73: 8.219178082 | C73: 8.219178082 | D73: 8.219178082
A74: Libya | B74: 8.515068493 | C74: 8.515068493 | D74: 8.515068493
A75: Slovenia | B75: 8.70136602 | C75: 8.70136602 | D75: 8.70136602
A76: italy | B76: 8.70136602 | C76: 63.81001748 | D76: 24.23813846
A77: Panama | B77: 8.904109589 | C77: 58.0091068 | D77: 33.4566082
A78: Vietnam | B78: 9.132420091 | C78: 9.132420091 | D78: 9.132420091
A79: Singapore | B79: 9.246575342 | C79: 164.3835616 | D79: 38.5464999
A80: Albania | B80: 9.393150685 | C80: 9.393150685 | D80: 9.393150685
A81: Costa Rica | B81: 9.626584777 | C81: 9.626584777 | D81: 9.626584777
A82: Australia | B82: 10.24566778 | C82: 209.5704773 | D82: 65.83002172
A83: Germany | B83: 10.44163922 | C83: 252.3396146 | D83: 71.02118108
A84: Israel | B84: 10.68493151 | C84: 68.49315068 | D84: 33.55251142
A85: MYS | B85: 10.95890411 | C85: 10.95890411 | D85: 10.95890411
A86: Argentina | B86: 10.95890411 | C86: 10.95890411 | D86: 10.95890411
A87: Canada | B87: 11.78686757 | C87: 561.2794081 | D87: 53.20648242
A88: Uruguay | B88: 11.98630137 | C88: 11.98630137 | D88: 11.98630137
A89: Dubai | B89: 12.43010104 | C89: 12.43010104 | D89: 12.43010104
A90: Iceland | B90: 14.29143836 | C90: 14.29143836 | D90: 14.29143836
A91: Kuwait | B91: 14.38356164 | C91: 32.87671233 | D91: 23.36377473
A92: New Zealand | B92: 15.02306341 | C92: 109.5890411 | D92: 38.51009573
A93: Ireland | B93: 15.22739054 | C93: 81.21274952 | D93: 45.42693154
A94: Turkey | B94: 16.43835616 | C94: 54.79452055 | D94: 35.61643836
A95: Azerbaijan | B95: 16.43835616 | C95: 16.43835616 | D95: 16.43835616
A96: Zimbabwe | B96: 16.62100457 | C96: 16.62100457 | D96: 16.62100457
A97: Denmark | B97: 18.26484018 | C97: 145.2054795 | D97: 61.67952573
A98: France | B98: 18.70793694 | C98: 56.84892467 | D98: 29.70389108
A99: Belgium | B99: 18.7949506 | C99: 52.20819612 | D99: 32.09643879
A100: Netherlands | B100: 20.01314185 | C100: 95.71502623 | D100: 41.85321746
A101: Finland | B101: 20.54794521 | C101: 104.4163922 | D101: 51.92239105
A102: CEE | B102: 20.54794521 | C102: 104.4163922 | D102: 62.48216873
A103: Qatar | B103: 21.23287671 | C103: 44.93150685 | D103: 36.66666667
A104: mozambique | B104: 21.91780822 | C104: 21.91780822 | D104: 21.91780822
A105: self-employed | B105: 22.83105023 | C105: 22.83105023 | D105: 22.83105023
A106: Japan | B106: 23.14809229 | C106: 38.01369863 | D106: 32.86823776
A107: Norway | B107: 23.1850865 | C107: 100.456621 | D107: 58.93761536
A108: Austria | B108: 23.20364272 | C108: 23.20364272 | D108: 23.20364272
A109: Kenya | B109: 23.51461461 | C109: 23.51461461 | D109: 23.51461461
A110: Hong Kong | B110: 27.39726027 | C110: 27.39726027 | D110: 27.39726027
A111: Czech Republic | B111: 32.87671233 | C111: 32.87671233 | D111: 32.87671233
A112: Somalia | B112: 35.61643836 | C112: 35.61643836 | D112: 35.61643836
A113: Uganda | B113: 45.66210046 | C113: 45.66210046 | D113: 45.66210046
A114: Oman | B114: 46.02739726 | C114: 46.02739726 | D114: 46.02739726
A115: Switzerland | B115: 48.85844749 | C115: 205.4794521 | D115: 109.8121527
A116: Europe | B116: 68.45074603 | C116: 104.4163922 | D116: 83.16185551
A117: Lesotho | B117: 81.09589041 | C117: 81.09589041 | D117: 81.09589041
A118: Central America | B118: 86.75799087 | C118: 86.75799087 | D118: 86.75799087
A119: Sweden | B119: 91.32420091 | C119: 94.45824683 | D119: 92.89122387
A120: Grand Total | B120: 0.6542931401 | C120: 561.2794081 | D120: 31.51806189
